{"text_format":"2","workbook":"xlsx","n_sheets":14,"sheets":["Resumo","Serviços","Materias","Plan_Orc_Eletric","Comp_Flutuante","Composição","Compos_Eletric","Cronograma","Det_Encarg Sociais","BDI Serviços","BDI Materiais","Ancoragem","Quantitativos","Plan1"],"not_rendered":{"charts":0,"images":3,"macros":0,"external_links":1,"defined_names":3,"comments":1,"pivot_tables":0},"unopened":[],"bounds":{"document_bytes":16777216,"sheet_cells":100000,"run_cost":"one","rows_first":2000,"rows_last":500,"rows_between":2000,"halvings":0,"cell_chars":16384,"cell_head_chars":4096},"cells_cut":0,"cells_raw":0,"read":"whole","date_system":"1900"}

{"sheet":"Resumo","index":0,"n_rows":20,"n_cols":4,"rows_kept":20,"cut":false,"hidden":false,"merged":[[3,0,5,0],[3,1,5,3],[19,0,19,2],[13,0,13,2],[17,0,17,2],[15,0,16,0],[8,0,11,0],[8,2,8,3]]}
[null,"             ","Ministério da Integração Nacional - MI"]
[null,null,"Companhia  de  Desenvolvimento  dos  Vales  do  São  Francisco e do Parnaíba"]
[" ",null,"6ª Superintendência Regional"]
["OBJETO:","Execução de obras e serviços de engenharia relativos à readequação da captação do sistema de abastecimento de água da sede do Município de Remanso, no estado da Bahia."]
[]
[]
[]
["DATA BASE: 08/2017"]
["I","SERVIÇOS","Valor"]
[null,"SERVIÇOS PRELIMINARES","R$",{"$f":"Serviços!H10","v":360072.11}]
[null,"ADUTORA DE AGUA BRUTA","R$",{"$f":"Serviços!H15+Serviços!H23+Serviços!H41+Serviços!H45+Serviços!H58+Serviços!H60","v":963943.2899999998}]
[null,"INSTALAÇÕES ELÉTRICAS","R$",{"$f":"Plan_Orc_Eletric!G19","v":130349.84}]
[]
["VALOR TOTAL DOS SERVIÇOS (R$)",null,null,{"$f":"SUM(D10:D13)","v":1454365.24}]
[]
["II","MATERIAIS HIDRÁULICOS",null,{"$f":"Materias!I47","v":930917.84}]
[null,"MATERIAIS ELÉTRICOS","R$",{"$f":"Plan_Orc_Eletric!G14","v":1226743.3500000001}]
["VALOR TOTAL DOS MATERIAIS (R$)",null,null,{"$f":"SUM(D16:D17)","v":2157661.19}]
[]
["VALOR TOTAL DA OBRA (R$)",null,null,{"$f":"D14+D18","v":3612026.4299999997}]

{"sheet":"Serviços","index":1,"n_rows":63,"n_cols":15,"rows_kept":63,"cut":false,"hidden":false,"merged":[[62,0,62,5],[40,1,40,6],[44,1,44,6],[59,1,59,6],[9,1,9,5],[0,5,0,7],[3,1,5,7],[14,0,14,6],[22,0,22,6],[57,1,57,6],[3,0,5,0],[6,0,6,7],[2,5,2,7],[1,2,1,7],[7,3,7,7]]}
[null,null,"             Ministério da Integração Nacional - MI"]
[null,null,"             Companhia  de  Desenvolvimento  dos  Vales  do  São  Francisco e do Parnaíba"]
[null,null,"             6ª Superintendência Regional"]
["OBJETO:","Execução de obras e serviços de engenharia relativos à readequação da captação do sistema de abastecimento de água da sede do Município de Remanso, no estado da Bahia."]
[]
[]
["PLANILHA ORÇAMENTÁRIA -  Serviços Adutora e Captação Flutuante"]
[null,"DATABASE:08/2017",null,"BDI SERVIÇOS: 28.45%"]
["ITEM","COD","DISCRIMINAÇÃO","UNIDADE","QUANT.","V. UNITÁRIO","V. TOTAL","V. TOTAL","V. UNITÁRIO",null,{"$f":"L9/100","v":2.845322760155815E-3},{"$f":"'BDI Serviços'!D26","v":0.28453227601558151},"Serviços"]
["1.0","SERVIÇOS PRELIMINARES",{"$nulls":5},{"$f":"SUM(H11:H14)","v":360072.11},null,null,{"$f":"L10/100","v":2.0995295318453986E-3},{"$f":"'BDI Materiais'!D26","v":0.20995295318453988},"Marteriais"]
["1.1","COMPOSIÇÃO","ADMINISTRAÇÃO LOCAL E MANUTENÇÃO DE CANTEIRO DE OBRAS","Unid",1,{"$f":"Composição!G48","v":202064.90411660002},{"$f":"ROUND(E11*F11,2)","v":202064.9},{"$f":"ROUND(E11*F11,2)","v":202064.9},{"$f":"Composição!J48","v":0}]
["1.2","74209/001","PLACA DE OBRA EM CHAPA DE ACO GALVANIZADO - MODELO CODEVASF-MI","M²",12,{"$f":"I12*(1+$K$9)","v":267.00756718489151},3204.09,{"$f":"ROUND(E12*F12,2)","v":3204.09},266.25]
["1.3",93583,"INSTALAÇÃO DE CANTEIRO DE OBRAS","M²",360,{"$f":"I13*(1+$K$9)","v":284.24647828313857},102328.73,102328.73,283.44]
["1.4","COMPOSIÇÃO","MOBILIZAÇÃO E DESMOBILIZAÇÃO DE EQUIPAMENTOS","Und.",2,{"$f":"Composição!G64","v":26237.197},52474.39,52474.39,{"$f":"Composição!J64","v":0}]
["PROTEÇÃO DOS EQUIPAMENTOS DA PONTA DO MOLHE",{"$nulls":6},{"$f":"SUM(H16:H22)","v":4232.0200000000004}]
["2.1","74143/001","CERCA COM MOUROES DE CONCRETO, RETO, 15X15CM, ESPACAMENTO DE 3M, CRAVADOS 0,5M, ESCORAS DE 10X10CM NOS CANTOS, COM 12 FIOS DE ARAME DE ACO OVALADO 15X17 (PARA DIVISAO DE TERRENOS URBANOS)","M",{"$f":"Quantitativos!F45","v":20},{"$f":"I16*(1+$K$9)","v":48.076404773121872},{"$f":"ROUND(E16*F16,2)","v":961.53},{"$f":"ROUND((G16+(G16*$L$9)),2)","v":1235.1199999999999},47.94]
["2.2","10000/ORSE","PORTÃO EM TUBO FERRO GALVANIZADO, COM QUADRO Ø= 2\", CANTONEIRA 1\"X1\" E TELA DE ARAME GALVANIZADO, FIO 12 BWG, MALHA QUADRADA D=1\"","M²",2,{"$f":"I17*(1+$K$9)","v":329.53497305898725},659.07,846.6,328.6]
["2.3","74154/001","ESCAVACAO, CARGA E TRANSPORTE DE MATERIAL DE 1A CATEGORIA COM TRATOR SOBRE ESTEIRAS 347 HP E CACAMBA 6M3, DMT 50 A 200M","M3",{"$f":"Quantitativos!F48","v":7.1999999999999993},5.4,38.880000000000003,49.94,4.21]
["2.4",55835,"REATERRO INTERNO (EDIFICACOES) COMPACTADO MANUALMENTE","M3",{"$f":"Quantitativos!F49","v":4.8000000000000007},61.59,295.63,379.75,47.95,{"$nulls":5},"OK"]
["2.5",94962,"CONCRETO MAGRO PARA LASTRO, TRAÇO 1:4,5:4,5 (CIMENTO/ AREIA MÉDIA/ BRITA 1) - PREPARO MECÂNICO COM BETONEIRA 400 L. AF_07/2016","M3",{"$f":"Quantitativos!F46","v":1.2600000000000002},321.72000000000003,405.37,520.71,250.46,{"$nulls":5},"OK"]
["2.6","79498/001","PINTURA A OLEO BRILHANTE SOBRE SUPERFICIE METALICA, UMA DEMAO INCLUSO UMA DEMAO DE FUNDO ANTICORROSIVO","M²",2,18.46,36.92,47.42,14.37,{"$nulls":5},"OK"]
["2.7",94963,"CONCRETO FCK = 15MPA, TRAÇO 1:3,4:3,5 (CIMENTO/ AREIA MÉDIA/ BRITA 1)- PREPARO MECÂNICO COM BETONEIRA 400 L. AF_07/2016","M3",{"$f":"Quantitativos!F47","v":2.5200000000000005},356.03,897.2,1152.48,277.18,{"$nulls":5},"OK"]
["CASA DE COMANDO",{"$nulls":6},{"$f":"SUM(H24:H40)","v":13070.959999999995}]
["3.1","74154/001","ESCAVACAO, CARGA E TRANSPORTE DE MATERIAL DE 1A CATEGORIA COM TRATOR SOBRE ESTEIRAS 347 HP E CACAMBA 6M3, DMT 50 A 200M","M3",{"$f":"Quantitativos!F60","v":13.925000000000001},5.4,{"$f":"ROUND(E24*F24,2)","v":75.2},{"$f":"ROUND(E24*F24,2)","v":75.2},4.21,{"$nulls":5},"OK"]
["3.2",55835,"REATERRO INTERNO (EDIFICACOES) COMPACTADO MANUALMENTE","M3",{"$f":"Quantitativos!F61","v":7.78},{"$f":"F19","v":61.59},479.17,479.17,47.95,{"$nulls":5},"OK"]
["3.3",94962,"CONCRETO MAGRO PARA LASTRO, TRAÇO 1:4,5:4,5 (CIMENTO/ AREIA MÉDIA/ BRITA 1) - PREPARO MECÂNICO COM BETONEIRA 400 L. AF_07/2016","M3",{"$f":"Quantitativos!F58","v":0.87624999999999997},{"$f":"F20","v":321.72000000000003},281.91000000000003,281.91000000000003,250.46,{"$nulls":5},"OK"]
["3.4",94964,"CONCRETO FCK = 20MPA, TRAÇO 1:2,7:3 (CIMENTO/ AREIA MÉDIA/ BRITA 1) -PREPARO MECÂNICO COM BETONEIRA 400 L. AF_07/2016","M3",{"$f":"Quantitativos!F59","v":1.1025},391.42,431.54,431.54,304.73,{"$nulls":5},"OK"]
["3.5",73361,"CONCRETO CICLOPICO FCK=10MPA 30% PEDRA DE MAO INCLUSIVE LANCAMENTO","M³",{"$f":"Quantitativos!F62","v":3.3800000000000003},436.31,1474.73,{"$f":"ROUND(E28*F28,2)","v":1474.73},339.68,{"$nulls":5},"OK"]
["3.6","74141/001","LAJE PRE-MOLD BETA 11 P/1KN/M2 VAOS 4,40M/INCL VIGOTAS TIJOLOS ARMADURA NEGATIVA CAPEAMENTO 3CM E OBRA.CONCRETO 20MPA ESCORAMENTO MATERIAL E MAO DE OBRA.","M²",{"$f":"Quantitativos!F71","v":10.8},89.74,969.19,969.19,69.87,{"$nulls":5},"OK"]
["3.7","74238/002","PORTAO EM TELA ARAME GALVANIZADO N.12 MALHA 2\" E MOLDURA EM TUBOS DE ACO COM DUAS FOLHAS DE ABRIR, INCLUSO FERRAGENS","M²",{"$f":"Quantitativos!F67","v":2.94},1234.69,3629.99,3629.99,961.23,{"$nulls":5},"OK"]
["3.8","79498/001","PINTURA A OLEO BRILHANTE SOBRE SUPERFICIE METALICA, UMA DEMAO INCLUSO UMA DEMAO DE FUNDO ANTICORROSIVO","M²",2.94,18.45,54.24,54.24,14.37,{"$nulls":5},"OK"]
["3.9",89460,"ALVENARIA DE BLOCOS DE CONCRETO ESTRUTURAL 14X19X39 CM, (ESPESSURA 14 CM) FBK = 14,0 MPA, PARA PAREDES COM ÁREA LÍQUIDA MAIOR OU IGUAL A 6M², COM VÃOS, UTILIZANDO PALHETA. AF_12/2014","M²",{"$f":"Quantitativos!F57","v":30.139999999999997},71.27,2148.08,2148.08,55.49,{"$nulls":5},"OK"]
["3.10","74077/002","LOCACAO CONVENCIONAL DE OBRA, ATRAVÉS DE GABARITO DE TABUAS CORRIDAS PONTALETADAS, COM REAPROVEITAMENTO DE 10 VEZES.","M²",{"$f":"Quantitativos!F55","v":10.5},5.38,56.49,56.49,4.1900000000000004,{"$nulls":5},"OK"]
["3.11",95465,"COBOGO CERAMICO (ELEMENTO VAZADO), 9X20X20CM, ASSENTADO COM ARGAMASSA TRACO 1:4 DE CIMENTO E AREIA","M²",{"$f":"Quantitativos!F68","v":0.72},147.69,{"$f":"ROUND(E34*F34,2)","v":106.34},106.34,114.98,{"$nulls":5},"OK"]
["3.12",93205,"CINTA DE AMARRAÇÃO DE ALVENARIA MOLDADA IN LOCO COM UTILIZAÇÃO DE BLOCOS CANALETA. AF_03/2016","m",{"$f":"Quantitativos!F63","v":13},28.51,370.63,370.63,22.2,{"$nulls":5},"OK"]
["3.13",93184,"VERGA PRÉ-MOLDADA PARA PORTAS COM ATÉ 1,5 M DE VÃO. AF_03/2016","m",7.8,27.24,{"$f":"ROUND(E36*F36,2)","v":212.47},212.47,21.21,{"$nulls":5},"OK"]
["3.14",87905,"CHAPISCO APLICADO EM ALVENARIA (COM PRESENÇA DE VÃOS) E ESTRUTURAS DE CONCRETO DE FACHADA, COM COLHER DE PEDREIRO. ARGAMASSA TRAÇO 1:3 COM PREPARO EM BETONEIRA 400L. AF_06/2014","M²",{"$f":"Quantitativos!F64","v":65.08},8,520.64,520.64,6.23,{"$nulls":5},"OK"]
["3.15",87547,"MASSA ÚNICA, PARA RECEBIMENTO DE PINTURA, EM ARGAMASSA TRAÇO 1:2:8, PREPARO MECÂNICO COM BETONEIRA 400L, APLICADA MANUALMENTE EM FACES INTERNAS DE PAREDES, ESPESSURA DE 10MM, COM EXECUÇÃO DE TALISCAS.","M²",{"$f":"Quantitativos!F65","v":65.08},22.85,1487.08,1487.08,17.79,{"$nulls":5},"OK"]
["3.16",88487,"APLICAÇÃO MANUAL DE PINTURA COM TINTA LÁTEX PVA EM PAREDES, DUAS DEMÃO S. AF_06/2014","M²",{"$f":"Quantitativos!F66","v":65.08},9.42,613.04999999999995,613.04999999999995,7.34,{"$nulls":5},"OK"]
["3.17",94963,"CONCRETO FCK = 15MPA, TRAÇO 1:3,4:3,5 (CIMENTO/ AREIA MÉDIA/ BRITA 1)- PREPARO MECÂNICO COM BETONEIRA 400 L. AF_07/2016 - Para a calçada","M3",{"$f":"Quantitativos!F70","v":0.44999999999999996},{"$f":"F22","v":356.03},160.21,160.21,277.18,{"$nulls":5},"OK"]
[null,"ENVELOPAMENTO DAS TUBULAÇÕES E CAIXA DE INSPEÇÃO DA REDE ELÉTRICA",{"$nulls":5},{"$f":"SUM(H42:H44)","v":10647.470000000001}]
["4.1","74154/001","ESCAVACAO, CARGA E TRANSPORTE DE MATERIAL DE 1A CATEGORIA COM TRATOR SOBRE ESTEIRAS 347 HP E CACAMBA 6M3, DMT 50 A 200M","M3",{"$f":"Quantitativos!F7","v":4.2000000000000011},{"$f":"F18","v":5.4},22.68,{"$f":"ROUND((G42+(G42*$L$9)),2)","v":29.13},4.21,{"$nulls":5},"OK"]
["4.2","COMPOSIÇÃO","EXECUÇÃO DE ENVELOPAMENTO DE TUBULAÇÃO EM CONCRETO SIMPLES,INCLUIDO PREPARO MECANICO, LANÇAMENTO E ADENSAMENTO.","m³",{"$f":"Quantitativos!F9","v":4.003750000000001},999.94,4003.51,{"$f":"ROUND((G43+(G43*$L$9)),2)","v":5142.6400000000003},{"$f":"Composição!J17","v":0},{"$nulls":5},"OK"]
["4.3","74166/002","CAIXA DE INSPECAO EM ANEL DE CONCRETO PRE MOLDADO, COM 950MM DE ALTURA TOTAL. ANEIS COM ESP=50MM, DIAM.=600MM. EXCLUSIVE TAMPAO E ESCAVACAO - FORNECIMENTO E INSTALACAO","un ",10,426.28,4262.8,{"$f":"ROUND((G44+(G44*$L$9)),2)","v":5475.7},331.87,{"$nulls":5},"OK"]
[null,"ASSENTAMENTO DAS TUBULAÇÕES, DA REDE ELÉTRICA, VÁLVULAS E REGISTROS",{"$nulls":5},{"$f":"SUM(H46:H57)","v":530120.5199999999}]
["5.1",85323,"LOCACAO E NIVELAMENTO DE EMISSARIO/REDE COLETORA COM AUXILIO DE EQUIPAMENTO TOPOGRAFICO","M",{"$f":"Quantitativos!F13+Quantitativos!F25","v":8700},3.16,27492,{"$f":"ROUND((G46+(G46*$L$9)),2)","v":35314.36},2.46,{"$nulls":5},"OK"]
["5.2",90091,"ESCAVAÇÃO MECANIZADA DE VALA COM PROF. ATÉ 1,5 M(MÉDIA ENTRE MONTANTE E JUSANTE/UMA COMPOSIÇÃO POR TRECHO), COM ESCAVADEIRA HIDRÁULICA (0,8 M3/111 HP), LARG. DE 1,5M A 2,5 M, EM SOLO DE 1A CATEGORIA, LOCAIS COM BAIXO NÍVEL DE INTERFERÊNCIA. AF_01/2015","M3",4030.17,6.61,26639.42,34219.19,5.14,{"$nulls":5},"OK"]
["5.3",72915,"ESCAVACAO MECANICA DE VALA EM MATERIAL DE 2A. CATEGORIA ATE 2 M DE PROFUNDIDADE COM UTILIZACAO DE ESCAVADEIRA HIDRAULICA","M3",3358.95,12.44,41785.339999999997,53674.62,9.69,{"$nulls":5},"OK"]
["5.4","04626 ORSE"," ESCAVAÇÃO, CARGA E TRANSPORTE DE MATERIAL DE 3ª CATEGORIA, COM PERFURATRIZ SOBRE ESTEIRAS, DMT 1001 A 1200M \n","M3",{"$f":"Quantitativos!F22+Quantitativos!F34","v":671.23199999999997},48.94,32850.089999999997,42197,37.44,{"$nulls":5},"OK"]
["5.5",93367,"REATERRO MECANIZADO DE VALA COM ESCAVADEIRA HIDRÁULICA (CAPACIDADE DA  CAÇAMBA: 0,8 M³ / POTÊNCIA: 111 HP), LARGURA DE 1,5 A 2,5 M, PROFUNDIDADE ATÉ 1,5 M, COM SOLO (SEM SUBSTITUIÇÃO) DE 1ª CATEGORIA EM LOCAIS COM BAIXO NÍVEL DE INTERFERÊNCIA. AF_04/2016","M3",{"$f":"Quantitativos!F18+Quantitativos!F30","v":6733.1722499999996},17.3,116483.88,149627.29999999999,13.47,{"$nulls":5},"OK"]
["5.6","2526/ORSE"," MATERIAL DE JAZIDA OU AREIA FINA PARA ATERRO, INCLUSIVE AQUISIÇÃO E ESCAVAÇÃO NA JAZIDA, EXCLUSIVE TRANSPORTE","M3",671.23,13.42,9007.91,11570.95,15.26,{"$nulls":5},"OK"]
["5.7","03212/ORSE","COLCHÃO DE AREIA","M3",{"$f":"Quantitativos!F19+Quantitativos!F31","v":616},104.84,64581.440000000002,82956.94,90.04,{"$nulls":5},"OK"]
["5.8","73888/009","ASSENTAMENTO TUBO PVC COM JUNTA ELASTICA, ATÉ  DN 400 MM - (OU RPVC, OU PVCDEFOFO, OU PRFV) - PARA AGUA.","M",{"$f":"Quantitativos!F13+Quantitativos!F25","v":8700},9.17,79779,102478.7,7.14,{"$nulls":5},"OK"]
["5.9","73884/001","INSTALAÇÃO DE VÁLVULAS OU REGISTROS COM JUNTA FLANGEADA - DN 50","un ",3,63.7,191.1,245.47,49.59,{"$nulls":5},"OK"]
["5.10","73884/003","INSTALAÇÃO DE VÁLVULAS OU REGISTROS COM JUNTA FLANGEADA - DN 100","un ",6,123.77,742.62,953.92,96.36,{"$nulls":5},"OK"]
["5.11","73884/005","INSTALAÇÃO DE VÁLVULAS OU REGISTROS COM JUNTA FLANGEADA - DN 200","un ",6,624.42999999999995,3746.58,4812.6000000000004,486.13,{"$nulls":5},"OK"]
["5.12",73588,"TRANSPORTE DE TUBOS DE PVC DN 300","M",8700,1.08,9396,12069.47,0.84,{"$nulls":5},"OK"]
[null,"BLOCO DE ANCORAGEM",{"$nulls":5},{"$f":"SUM(H59:H59)","v":20579.939999999999}]
["6.1",94963,"CONCRETO FCK = 15MPA, TRAÇO 1:3,4:3,5 (CIMENTO/ AREIA MÉDIA/ BRITA 1)- PREPARO MECÂNICO COM BETONEIRA 400 L. AF_07/2016","M3",45,{"$f":"F22","v":356.03},16021.35,{"$f":"ROUND((G59+(G59*$L$9)),2)","v":20579.939999999999},277.18,{"$nulls":5},"OK"]
[null,"CONJUNTO MOTOR BOMBA E FLUTUANTE",{"$nulls":5},{"$f":"H61","v":385292.38}]
["7.1","Composição","CAPTAÇÃO FLUTUANTE - PROJETO, FONECIMENTO E INSTALAÇÃO ","un ",1,{"$f":"Comp_Flutuante!G26","v":385292.38},{"$f":"ROUND(E61*F61,2)","v":385292.38},{"$f":"G61","v":385292.38},{"$f":"Comp_Flutuante!J26","v":0}]
[]
["TOTAL ITEM - Adutora e infraestrutura - Serviços",{"$nulls":6},{"$f":"SUM(H60,H58,H45,H41,H23,H15,H10)","v":1324015.3999999999}]

{"sheet":"Materias","index":2,"n_rows":47,"n_cols":14,"rows_kept":47,"cut":false,"hidden":false,"merged":[[46,0,46,7],[11,1,11,7],[13,1,13,7],[7,0,7,8],[0,5,0,8],[2,5,2,8],[3,0,5,0],[3,1,5,8],[1,2,1,8],[9,1,9,5],[25,1,25,7],[27,1,27,7]]}
[null,null,"             Ministério da Integração Nacional - MI"]
[null,null,"             Companhia  de  Desenvolvimento  dos  Vales  do  São  Francisco e do Parnaíba"]
[null,null,"             6ª Superintendência Regional",{"$nulls":8},2.0999999999999999E-3,0.21,"Marteriais"]
["OBJETO:"," Execução de obras e serviços de engenharia relativos à readequação da captação do sistema de abastecimento de água da sede do Município de Remanso, no estado da Bahia."]
[]
[]
[null,null,"DATABASE:08/2017",{"$nulls":4},"BDI MATERIAIS: 21%","BDI MATERIAIS:21%"]
["PLANILHA ORÇAMENTÁRIA -Materiais - Adutora e Captação Flutuante"]
["ITEM","COD","DISCRIMINAÇÃO","UNIDADE","QUANT.","V. UNITÁRIO",null,"V. TOTAL","V. TOTAL "]
["1.0","Tubulação",{"$nulls":6},{"$f":"SUM(I11:I11)","v":875331.36}]
["1.1","SINAPI 9827","TUBO PVC DEFOFO, JEI, 1 MPA, DN 300 MM, PARA REDE DE AGUA (NBR 7665)","M",4932,177.48,138.16,{"$f":"ROUND(E11*F11,2)","v":875331.36},{"$f":"H11","v":875331.36}]
["2.0","OUTRAS CONEXÕES ",{"$nulls":6},{"$f":"SUM(I13:I13)","v":1255.98}]
["2.1","COTAÇÃO","CURVA BB FF K7 11,15º 300 mm PN 10","pç",2,{"$f":"G13*(1+$M$3)","v":627.99},519,1255.98,{"$f":"H13","v":1255.98}]
["3.0","Ventosas",{"$nulls":6},{"$f":"SUM(I15:I25)","v":25794.21}]
["3.1","COTAÇÃO","COLAR DE TOMADA FLANGEADO PN 10 PARA TUBOS FF 300 X 200 MM COM PARAFUSOS E ANÉIS.","pç",1,{"$f":"G15*(1+$M$3)","v":363},300,{"$f":"ROUND(E15*F15,2)","v":363},{"$f":"H15","v":363}]
["3.2","COTAÇÃO","COLAR DE TOMADA FLANGEADO PN 10 PARA TUBOS FF 300 X 100 MM COM PARAFUSOS E ANÉIS.","pç",{"$f":"E23","v":3},{"$f":"G16*(1+$M$3)","v":423.5},350,1270.5,{"$f":"H16","v":1270.5}]
["3.3","COTAÇÃO","COLAR DE TOMADA FLANGEADO PN 10 PARA TUBOS FF 300 X 50 MM COM PARAFUSOS E ANÉIS.","pç",8,484,400,3872,3872]
["3.5","COTAÇÃO","FLANGE CEGO FF 200 MM PN 10 COM ANEL E PARAFUSOS.","pç",1,177.87,147,177.87,177.87]
["3.6","COTAÇÃO","FLANGE CEGO FF 100 MM PN 10 COM ANEL E PARAFUSOS.","pç",3,99.22,82,297.66000000000003,297.66000000000003]
["3.7","COTAÇÃO","FLANGE CEGO FF 50 MM PN 10 COM ANEL E PARAFUSOS.","pç",8,60.5,50,484,484]
["3.8","COTAÇÃO","TAMPÃO PVC 2\" FLANGE PVC, ROSCAVEL, SEXTAVADO, SEM FUROS, 2\"","pç",2,60.5,50,121,121]
["3.9","Cotação","VENTOSA TRÍPLICE FUNÇÃO, PN 25, DIAM = 50MM","pç",8,830.06,686,6640.48,6640.48]
["3.10","06432/ORSE","VENTOSA TRÍPLICE FUNÇÃO, PN 16, DIAM = 100MM","pç",3,2143.6480999999999,1771.61,6430.94,6430.94]
["3.11","06434/ORSE","VENTOSA TRÍPLICE FUNÇÃO, PN 16, DIAM = 200MM","pç",1,4684.7569999999996,3871.7,4684.76,4684.76]
["3.12","COTAÇÃO","VENTOSA PLÁSTICA DE TRÍPLICE EFEITO, RESISTÊNCIA A PRESSÃO DE MÍNIMA  PN 10, ROSCÁVEL, 2\" COM FLUTUADOR CILÍNDRICO, PARA TENSÃO DE - 2 MCA.","pc",2,726,600,1452,1452]
["4.0","CONJUNTO MOTO-BOMBA",{"$nulls":6},{"$f":"SUM(I27:I27)","v":46.72}]
["4.1","Sinapi 00007588","AUTOMATICO DE BOIA INFERIOR 10A/250V","pç",1,46.7181,38.61,46.72,{"$f":"H27","v":46.72}]
["5.0","LIGAÇÃO DE PRESSÃO E OUTRAS CONEXÕES",{"$nulls":6},{"$f":"SUM(I29:I45)","v":28489.569999999996}]
["5.1","COTAÇÃO","TÊ COM FLANGE FF, PN 10, 200X100 MM","pç",1,701.8,580,{"$f":"ROUND(E29*F29,2)","v":701.8},{"$f":"H29","v":701.8}]
["5.2","COTAÇÃO","REGISTRO DE GAVETA FLANGEADO PN 10, (200MM), COM PARAFUSO, FF, NODULAR","pç",1,2395.7999999999997,1980,2395.8000000000002,{"$f":"H30","v":2395.8000000000002}]
["5.3","COTAÇÃO","ANEL PARA FLANGES 200MM","pç",4,22.99,19,91.96,91.96]
["5.4","COTAÇÃO","REDUÇÃO FLANGEADA CONCÊNTRICA FF NODULAR PN 10 200X150, COM PARAFUSOS","pç",1,1099.8899999999999,909,1099.8900000000001,1099.8900000000001]
["5.5","COTAÇÃO","ANEL PARA FLANGES 150MM","pç",4,19.36,16,77.44,77.44]
["5.6","SINAPI/0003270","CONTRAFLANGE (OU FLANGE CEGO SEXTAVADO) 150 MM","pç",2,198.31899999999999,163.9,396.64,396.64]
["5.7","SINAPI/0004185","NIPLE DE FERRO GALVANIZADO, COM ROSCA BSP, DE 6\"","pç",2,309.3365,255.65,618.66999999999996,618.66999999999996]
["5.8","COTAÇÃO","VÁLVULA METAL SUSTENTADIORA DE PRESSÃO(PS) / OPERADORA DE BOMBA(BO), FF NODULAR,  COM PILOTO  DE 3 VIAS, TOMADA POLIFLOW A JUSANTE A A MONTANTE, 6\" ROSCÁVEL, PN 16.","pç",1,6776,5600,6776,6776]
["5.9","COTAÇÃO","HIDRÔMETRO TANGENCIAL METÁLICO, PN 10, 6\" , FLANGEADO, COM CONTADOR DE PULSOS, ANÉIS E PARAFUSOS. ","pç",1,7780.3,6430,7780.3,7780.3]
["5.10","COTAÇÃO","REDUÇÃO FLANGEADA CONCÊNTRICA FF NODULAR PN 10 300X150, COM PARAFUSOS","pç",1,1277.76,1056,1277.76,1277.76]
["5.11","COTAÇÃO","TOCO FLANGEADO 200M","pç",2,2783,2300,5566,5566]
["5.12","COTAÇÃO","COLAR DE TOMADA FLAGEADO PN 10 PARA TUBOS FF 200 X 100 COM PARAFUSOS E ANÍES","pç",1,641.29999999999995,530,641.29999999999995,641.29999999999995]
["5.13","COTAÇÃO","ANEL PARA FLANGES 300 MM","pç",2,10.89,9,{"$f":"ROUND(E41*F41,2)","v":21.78},21.78]
["5.14","COTAÇÃO","EXTEMIDADE FLANGE X BOLSA 300 MM PN 10, COM PARAFUSOS, ARRUELAS E PORCAS.","pç",1,665.5,550,665.5,665.5]
["5.15","COTAÇÃO","ANEL 80 MM PARA FLANGE .","pç",1,6.05,5,6.05,6.05]
["5.16","COTAÇÃO","CRIVO FLANGEADO FF NODULAR, PN 10, SEM VÁLVULA DE PÉ 80 MM COM PARAFUSOS, ARRUELAS E PORCAS.","pç",1,363,300,363,363]
["5.17","COTAÇÃO","ANEL PARA FLANGES 100 MM","pç",2,4.84,4,9.68,9.68]
[]
["TOTAL ITEM 02 - Adutora e infraestrutura - Serviços",{"$nulls":7},{"$f":"SUM(I26,I14,I12,I10,I28)","v":930917.84}]

{"sheet":"Plan_Orc_Eletric","index":3,"n_rows":32,"n_cols":8,"rows_kept":32,"cut":false,"hidden":false,"merged":[[0,2,0,6],[1,2,1,6],[2,2,2,6],[4,1,4,6],[6,0,6,6],[8,5,8,6],[11,0,11,6],[13,1,13,2],[18,1,18,2],[23,0,23,5],[8,0,9,0],[8,1,9,1],[8,2,9,2],[8,3,9,3],[8,4,9,4]]}
[null,null,"             Ministério da Integração Nacional - MI"]
[null,null,"             Companhia  de  Desenvolvimento  dos  Vales  do  São  Francisco e do Parnaíba"]
[null,null,"             6ª Superintendência Regional"]
[]
["OBJETO:","Execução de obras e serviços de engenharia relativos à readequação da captação do sistema de abastecimento de água da sede do Município de Remanso, no estado da Bahia."]
[null,"DATABASE: 08/2017"]
["PLANILHA ORÇAMENTÁRIA - Serviços Elétricos"]
[]
["ITEM ","CÓDIGO","DETALHAMENTO DOS SERVIÇOS E MATERIAIS","UNID.","QUANT.","PREÇOS R$"]
[{"$nulls":5},"VALOR UNIT. ","VALOR TOTAL"]
[]
["ITEM 01: INSTALAÇÕES ELÉTRICAS"]
[]
["1.1","FORNECIMENTOS - INSTALAÇÕES ELÉTRICAS",{"$nulls":4},{"$f":"ROUND(SUM(G15:G17),2)","v":1226743.3500000001}]
["1.1.1","Composição","FORNECIMENTO DOS MATERIAIS E EQUIPAMENTOS PARA A INTERLIGAÇÃO DA REDE DE MÉDIA TENSÃO EXISTENTE EM 13.8KV E O RAMAL DE ENTRADA, O QUAL CONTEMPLA EXTENSÃO DA REDE DE MÉDIA TENSÃO, CUBÍCULO DE MEDIÇÃO, DISJUNTOR, CHAVE SECCIONADORA EM 13.8KV E DEMAIS ACESSÓRIOS NECESSÁRIOS.","unid.",1,{"$f":"Compos_Eletric!F92","v":138535.96},{"$f":"ROUND($E15*$F15,2)","v":138535.96}]
["1.1.2","Composição","FORNECIMENTO DOS MATERIAIS E EQUIPAMENTOS PARA A INTERLIGAÇÃO DO CUBÍCULO DE MÉDIA TENSÃO EM 13.8KV E O PRIMÁRIO DO TRANSFORMADOR DE 112,5KVA.","unid.",1,{"$f":"Compos_Eletric!F130","v":1073601.52},{"$f":"ROUND($E16*$F16,2)","v":1073601.52}]
["1.1.3","Composição","FORNECIMENTO DOS MATERIAIS E EQUIPAMENTOS PARA A INTERLIGAÇÃO DO SECUNDÁRIO DO TRANSFORMADOR DE 112,5KVA AO PAINEL GERAL DE BAIXA TENSÃO (QGBT) E COJUNTOS MOTOBOMBAS - O QUAL CONTEMPLA UM PAINEL MODULAR COM DISJUNTOR PRINCIPAL, OS ACIONAMENTOS E PROTEÇÕES DOS CONJUNTOS MOTOBOMBAS E A INTERLIGAÇÃO ELÉTRICA AOS MOTORES","unid.",1,{"$f":"Compos_Eletric!F182","v":14605.87},{"$f":"ROUND($E17*$F17,2)","v":14605.87}]
[]
["2.2","SERVIÇOS - INSTALAÇÕES ELÉTRICAS",{"$nulls":4},{"$f":"ROUND(SUM(G20:G22),2)","v":130349.84}]
["2.2.1","Composição","SERVIÇOS DE SUPERVISÃO DE MONTAGEM E INSTALAÇÃO DA EXTENSÃO DE REDE DE MÉDIA TENSÃO, CUBÍCULOS, SUBESTAÇÃO EM 13.8 KV E  INTERLIGAÇÃO AO CCM DO CONJUNTO MOTOBOMBA, INCLUINDO A OPERAÇÃO ASSSISTIDA POR NO MÍNIMO 10 DIAS","unid.",1,{"$f":"Compos_Eletric!F205","v":69339.95},{"$f":"ROUND($E20*$F20,2)","v":69339.95}]
["2.2.2","Composição","PROJETO EXECUTIVO, COM  DESCRIÇÃO E DETALHAMENTO DO PROJETO ELÉTRICO EXTENSÃO DE REDE DE MÉDIA TENSÃO, DE FORÇA, COMANDO E PROTEÇÃO; DIAGRAMA UNIFILAR DE AT/BT; LAYOUT DE MONTAGEM; FOLHAS DE DADOS DOS COMPONENTES E MEMORIAL DE CÁLCULO","unid.",1,{"$f":"Compos_Eletric!F227","v":29873.34},{"$f":"ROUND($E21*$F21,2)","v":29873.34}]
["2.2.3","Composição","TRANSPORTE DE MATERIAIS E EQUIPAMENTOS DOS SERVIÇOS ELÉTRICOS","unid.",1,{"$f":"Compos_Eletric!F249","v":31136.55},{"$f":"ROUND($E22*$F22,2)","v":31136.55}]
[{"$nulls":7},{"$f":"UPPER(C23)","v":""}]
["TOTAL ITEM 02 - INSTALAÇÕES ELÉTRICAS",{"$nulls":5},{"$f":"ROUND(SUM(G14+G19),2)","v":1357093.19},""]
[]
[null,null," "]
[]
[]
[]
[]
[]
["."]

{"sheet":"Comp_Flutuante","index":4,"n_rows":27,"n_cols":9,"rows_kept":27,"cut":false,"hidden":false,"merged":[[3,0,4,6],[5,0,5,6],[2,2,2,6],[1,2,1,6],[0,2,0,6],[6,5,6,6],[14,2,14,6],[19,2,19,6],[21,2,21,6],[25,0,25,5],[8,2,8,6],[7,0,8,0],[7,1,8,1],[10,2,10,6],[12,2,12,6]]}
[null,null,"             Ministério da Integração Nacional - MI"]
[null,null,"             Companhia  de  Desenvolvimento  dos  Vales  do  São  Francisco e do Parnaíba"]
[null,null,"             6ª Superintendência Regional"]
["Objeto: Execução de obras e serviços de engenharia relativos à readequação da captação do sistema de abastecimento de água da sede do Município de Remanso, no estado da Bahia."]
[]
["COMPOSIÇÃO ORÇAMENTÁRIA - Captação Flutuante"]
[{"$nulls":5},"Valor Mediano com BDI"]
["ITEM 7.1","COD","DESCRIÇÃO","Quant. ","Unid. ","Preço unit. R$"," Preço total R$","Materiais","Serviços"]
[null,null,"Conjunto motobomba flutuante com as seguintes características:",{"$nulls":4},1.21,1.2845]
["7.1.1","Cotação","PARA ATENDER UMA VAZÃO DE 252M³/H EM 44MCA, MOTOBOMBA CENTRÍFUGA RADIAL, MONOBLOCO, SISTEMA BACK PULL OUT MODELO AFG 125-315 DE SUCÇÃO VERTICAL, RECALQUE NA HORIZONTAL, CARCAÇA ESPIRAL, ADAPTADOR EM FERRO FUNDIDO, COM ANEIS DE DESGASTE SUBSTITUÍVEIS, ROTOR E ANÉIS DE DESGASTE EM BRONZE E BUCHA PROTETORA DO EIXO E PARAFUSO DO ROTOR EM AÇO INOX. SELO MECÂNICO T21 2.1/4\" SIL/SIL/VITON. MOTOR ELÉTRICO (POTÊNCIA MÍNIMA DE 60 HP- CV) 45 KW,1750RPM, 4POLOS, FREQUÊNCIA 60HZ TENSÃO NOMINAL 220/380/440 V, FORMA CONSTRUTIVA TFVE, V18T, PROTEÇÃO IPW55, CARCAÇA 225S/M, FATOR DE SERVIÇO 1.15. FLUTUANTE CONSTRUÍDO EM FIBRA DE VIDRO, HERMETICAMENTE VEDADO, COM SAÍDA FLANGEADA 8” NORMA ANSI B16.5 COM RALO NA SUCÇÃO, EQUIPADO COM CRIVO, TAMPA DE PROTEÇÃO DO MOTOR, CHAPÉU EM FIBRA DE VIDRO.",1,"CJ",62700,{"$f":"ROUND(F10*D10*$I$9,2)","v":80538.149999999994}]
[null,null,"Painel CCM com chave softstarter 130A/380V"]
["7.1.2","Cotação","CCM CONTENDO 01 CHAVE SOFTSTARTER 130A PARA ACIONAMENTO DE\nMOTOR DE NO MÍNIMO 60CV 4P, BOTÃO LIGA/DESLIGA, SINALIZAÇÃO INDICANDO MOTOR LIGADO, BOTÃO DE EMERGÊNCIA. CONTACTOR DE BY-PASS INCORPORADO, CHAVE SELEÇÃO MANUAL/AUTOMÁTICO, MONITORAÇÃO VIA IHM DE: AMPERÍMETRO, VOLTÍMETRO, HORÍMETRO E COSSIMETRO, MONTADO EM CAIXA METÁLICA, COM MANOPLA NR 10, MONTAGEM INCLUSO.",1,"CJ ",16100,{"$f":"ROUND(F12*D12*$I$9,2)","v":20680.45}]
[null,null,"Mangote semi-flexivel"]
["7.1.3","Cotação","MANGOTE EM BORRACHA MANDRILADA SEM ARAME INTERNO FLANGEADA DE ACORDO\nCOM NORMA ANSI B16.5 FULL FACE, SEMI FLEXÍVEL, COM ILHOS PARA FIXAÇAO DO\nCABO ELETRICO, DIÂMETRO Ø200, COM OS PARAFUSOS DE FIXAÇÃO.",50,"M ",2681.03,{"$f":"ROUND(F14*D14*$I$9,2)","v":172189.15}]
[null,null,"Cabos elétricos "]
["7.1.4",39264,"CABO DE COBRE, MULTIPOLAR, FLEXÍVEL, ISOLAÇÃO EM HEPR, ANTICHAMA BWF-B, COBERTURA PVC-ST2, 3 CONDUTORES, 0,6/1 KV, SEÇÃO NOMINAL #35MM²",100,"M ",48.09,{"$f":"ROUND(F16*D16*$I$9,2)","v":6177.16}]
["7.1.5",1019,"CABO DE COBRE, FLEXÍVEL, ISOLAÇÃO EM PVC, ANTICHAMA BWF-B, COBERTURA PVC-ST1, 1 CONDUTOR, 0,6/1 KV, SEÇÃO NOMINAL #35MM² - VERDE",100,"M ",15.14,1944.73]
["7.1.6","08995/ORSE","CABO DE COBRE, FLEXIVEL, CLASSE 4 OU 5, ISOLACAO EM PVC/A, ANTICHAMA BWF-B, COBERTURA PVC-ST1, ANTICHAMA BWF-B, 2 CONDUTORES, 0,6/1 KV, SECAO NOMINAL 1,5 MM2",100,"M ",2.62,336.54]
["7.1.7",1577,"TERMINAL DE COMPRESSÃO PARA CABO DE 35 MM²",24,"Unid",1.41,43.47]
[null,null,"Conjunto flutuador p/PEAD"]
["7.1.8","Cotação","CONJUNTO FLUTUADOR EM PEAD, PARA MANGOTE, COM CINTAS E PARAFUSOS PARA FIXAÇÃO DOS FLUTUADORES À LINHA DE RECALQUE.",6,"CJ ",4500,34681.5]
[null,null,"Serviço de instalação e montagem"]
["7.1.9","Cotação","MOBILIZAÇÃO E DESMOBILIZAÇÃO,TRANSPORTE MONTAGEM DO CONJUNTO MOTOBOMBA, CCM DO MOTORE, CABOS ELÉTRICOS, MANGOTE FLEXIVEL E CONJUNTOS FLUTUADORES, INSTALAÇÃO DE TODOS OS EQUIPAMENTOS FORNECIDOS COM STARTUP.",1,"CJ ",21800,28002.1]
["7.1.10","Cotação","PROJETO EXECUTIVO",1,"CJ",31684.799999999999,40699.129999999997]
[{"$nulls":7},{"$f":"UPPER(C25)","v":""}]
["TOTAL ITEM 7.1 - Captação Flutuante",{"$nulls":5},{"$f":"ROUND(SUM(G10:G24),2)","v":385292.38},""]
[{"$nulls":7},""]

{"sheet":"Composição","index":5,"n_rows":64,"n_cols":9,"rows_kept":64,"cut":false,"hidden":false,"merged":[[61,1,61,4],[63,1,63,4],[62,1,62,3],[6,0,6,5],[17,0,17,5],[23,0,23,5],[29,0,29,5],[49,0,49,5],[0,2,0,6],[1,2,1,6],[2,2,2,6],[4,1,4,6],[5,0,5,6]]}
[null,null,"             Ministério da Integração Nacional - MI"]
[null,null,"             Companhia  de  Desenvolvimento  dos  Vales  do  São  Francisco e do Parnaíba"]
[null,null,"             6ª Superintendência Regional"]
[]
["OBJETO:","Execução de obras e serviços de engenharia relativos à readequação da captação do sistema de abastecimento de água da sede do Município de Remanso, no estado da Bahia."]
["Composições _Serviços"]
["EXECUÇÃO DE ENVELOPAMENTO DE TUBULAÇÃO EM CONCRETO SIMPLES,INCLUIDO PREPARO MECANICO, LANÇAMENTO E ADENSAMENTO. ",{"$nulls":5},"UND: m³"]
["Item 4.2","Cód. SINAPI ","Descrição","Unidade","Quantidade","Custo Unit.","Custo Total"]
["4.2.1","INSUMO - 6111","SERVENTE","H",10.86,8.3000000000000007,{"$f":"ROUND(E9*F9,2)","v":90.14}]
["4.2.2","INSUMO - 4750","PEDREIRO","H",2.14,14.06,30.09]
["4.2.3","COMPOSIÇÃO","AREIA GROSSA - DMT ATÉ 50Km","M3",0.74199999999999999,{"$f":"G23","v":85.9},63.74]
["4.2.4","INSUMO - 1379","CIMENTO PORTLAND COMPOSTO CP II - 32","KG",274.74056907701299,0.51,140.12]
["4.2.5","COMPOSIÇÃO","PEDRA BRITADA N. 1 OU 19 MM  - DMT ate 300Km","m³",0.85,{"$f":"G28","v":201.01},170.86]
["4.2.6","SERVIÇO 5970","FORMA TABUA PARA CONCRETO EM FUNDACAO, C/ REAPROVEITAMENTO 2X.","m²",4,70.88,283.52]
[{"$nulls":5},"Total",{"$f":"SUM(G9:G14)","v":778.47}]
[]
[{"$nulls":5},"Total geral (Sem BDI)",{"$f":"G15+G16","v":778.47},{"$f":"G17*1.2845","v":999.94471499999997}]
["AREIA GROSSA - DMT ate 50 Km  ",{"$nulls":5},"UND: m³"]
["Item 4.2.3","Cód. SINAPI ","Descrição","Unidade","Quantidade","Custo Unit.","Custo Total"]
["4.2.3.1","SINAPI 000367","AREIA GROSSA - POSTO JAZIDA / FORNECIMENTO  (SEM FRETE)","M3",1,62.9,{"$f":"ROUND(E20*F20,2)","v":62.9}]
["4.2.3.2","SERVIÇO 93596","TRANSPORTE COM CAMINHÃO BASCULANTE DE 10 M3, EM VIA URBANA PAVIMENTADA TXKM , DMT ACIMA DE 30 KM (UNIDADE: TONXKM). AF_04/2016","m³x Km",50,0.46,{"$f":"ROUND(E21*F21,2)","v":23}]
[]
[{"$nulls":5},"Total geral (Sem BDI)",{"$f":"SUM(G20:G22)","v":85.9}]
["PEDRA BRITADA N. 1 OU 19 MM  - DMT ate 300Km  ",{"$nulls":5},"UND: m³"]
["Item 4.2.5","Cód. SINAPI ","Descrição","Unidade","Quantidade","Custo Unit.","Custo Total"]
["4.2.5.1","SINAPI 004729","PEDRA BRITADA GRADUADA, CLASSIFICADA (POSTO PEDREIRA/FORNECEDOR, SEM FRETE)","m³",1,63.01,{"$f":"E26*F26","v":63.01}]
["4.2.5.2","SERVIÇO 93596","TRANSPORTE COM CAMINHÃO BASCULANTE DE 10 M3, EM VIA URBANA PAVIMENTADA TXKM , DMT ACIMA DE 30 KM (UNIDADE: TONXKM). AF_04/2016","m³x Km",300,0.46,{"$f":"ROUND(E27*F27,2)","v":138}]
[{"$nulls":5},"Total geral ",{"$f":"SUM(G26:G27)","v":201.01}]
[]
["ADMINISTRAÇÃO LOCAL E MANUTENÇÃO DE CANTEIRO DE OBRAS",{"$nulls":5},"UND"]
["Item 1.1","Cód. SINAPI","Descrição","Unidade","Quantidade","Custo Unit.","Custo Total"]
["1.1.1",40813,"Engenheiro Civil ","mes",4,15911.57,{"$f":"F32*E32","v":63646.28},null,{"$f":"E32/6/30","v":2.222222222222222E-2}]
["1.1.2",40939,"Engenheiro Eletricista","mes",2,14589.33,29178.66]
["1.1.3","00041096","Vigia","mes",8,2518.36,20146.88,null,{"$f":"30*7*6","v":1260}]
["1.1.4",null,"Comunicação (internet, telefone, rádios)","mês",4,1100,4400]
["1.1.5",null,"Aluguel casa","mês",8,800,6400]
["1.1.6",null,"PCMAT, PCMSO, PPRD","mês",4,50,200]
["1.1.7",null,"Epi´s","mês",4,563.15099999999995,2252.6039999999998]
["1.1.8",null,"Equipamentos de informática","mês",4,500,2000]
["1.1.9",null,"Moveis e utensílios","mês",4,580.5,2322]
["1.1.10",null,"Material de escritório/ limpeza","mês",4,653.38469999999995,2613.5387999999998]
["1.1.11","00041084","Servente (Limpeza)","mes",4,1453.55,5814.2]
["1.1.12",null,"Agua/ energia","mês",8,1170.24,9361.92]
["1.1.13","00040812","Auxiliar de Escritório","mes",4,2243.52,8974.08]
[]
[{"$nulls":5},"Total",{"$f":"SUM(G32:G44)","v":157310.16280000002}]
[{"$nulls":5},"BDI (28,45%)",{"$f":"G46*0.2845","v":44754.741316600004}]
[{"$nulls":5},"Total geral",{"$f":"SUM(G46:G47)","v":202064.90411660002}]
[]
["Mobilização",{"$nulls":5},"und"]
["Item 1.4","CÓDIGO:","EQUIPAMENTOS DIVERSOS","UNID.","QUANT.","PREÇO (R$)","TOTAL (R$)"]
["1.4.1",89873,"CAMINHÃO BASCULANTE 14 M3, COM CAVALO MECÂNICO DE CAPACIDADE MÁXIMA DE TRAÇÃO COMBINADO DE 36000 KG, POTÊNCIA 286 CV, INCLUSIVE SEMIREBOQUE COM CAÇAMBA METÁLICA - MANUTENÇÃO. AF_12/2014","h",50,28.6,{"$f":"E52*F52","v":1430}]
["1.4.2",73335,"CAMINHÃO TOCO, PBT 14.300 KG, CARGA ÚTIL MÁX. 9.710 KG, DIST. ENTRE EIXOS 3,56 M, POTÊNCIA 185 CV, INCLUSIVE CARROCERIA FIXA ABERTA DE MADEIRA P/ TRANSPORTE GERAL DE CARGA SECA, DIMEN. APROX. 2,50 X 6,50 X 0,50M - MANUTENÇÃO. AF_06/2014","h",50,14.34,{"$f":"E53*F53","v":717}]
["1.4.3",91030,"CAMINHÃO TRUCADO (C/ TERCEIRO EIXO) ELETRÔNICO - POTÊNCIA 231CV - PBT = 22000KG - DIST. ENTRE EIXOS 5170 MM - INCLUI CARROCERIA FIXA ABERTA DE MADEIRA - MATERIAIS NA OPERAÇÃO. AF_06/2015","h",100,94.86,{"$f":"E54*F54","v":9486}]
["1.4.4",null,"PASSAGEM DE ÔNIBUS","und.",25,200,{"$f":"E55*F55","v":5000}]
[null,null,"SUB-TOTAL",null,null,"R$",{"$f":"SUM(G52:G55)","v":16633}]
[null,"CÓDIGO:","MÃO DE OBRA","UNID.","QUANT.","PREÇO (R$)","TOTAL (R$)"]
["1.4.5",88281,"MOTORISTA DE BASCULANTE COM ENCARGOS COMPLEMENTARES","h",50,18.95,{"$f":"E58*F58","v":947.5}]
["1.4.6",88285,"MOTORISTA DE VEÍCULO PESADO COM ENCARGOS COMPLEMENTARES","h",150,18.97,{"$f":"E59*F59","v":2845.5}]
[null,null,"SUB- TOTAL",null,null,"R$",{"$f":"SUM(G58:G59)","v":3793}]
[]
[null,"CUSTO DIRETO DO SERVIÇO",null,null,null,"R$",{"$f":"SUM(G56,G60)","v":20426}]
[null,"BDI ",null,null,0.28449999999999998,"R$",{"$f":"G62*E63","v":5811.1969999999992}]
[null,"TOTAL GERAL",null,null,null,"R$",{"$f":"G62+G63","v":26237.197}]

{"sheet":"Compos_Eletric","index":6,"n_rows":254,"n_cols":21,"rows_kept":254,"cut":false,"hidden":false,"merged":[[83,0,83,5],[0,0,0,5],[1,2,1,3],[2,2,2,3],[3,2,3,3],[4,2,4,3],[5,2,5,3],[8,4,8,5],[11,0,11,5],[14,0,14,4],[15,0,15,5],[82,0,82,4],[138,0,138,5],[86,0,86,4],[93,4,93,5],[96,0,96,5],[99,0,99,4],[100,0,100,5],[120,0,120,4],[121,0,121,5],[124,0,124,4],[131,4,131,5],[134,0,134,5],[137,0,137,4],[209,0,209,5],[172,0,172,4],[173,0,173,5],[176,0,176,4],[183,4,183,5],[186,0,186,5],[189,0,189,4],[190,0,190,5],[193,0,193,4],[194,0,194,5],[199,0,199,4],[206,4,206,5],[243,0,243,4],[212,0,212,4],[213,0,213,5],[216,0,216,4],[217,0,217,5],[221,0,221,4],[228,4,228,5],[231,0,231,5],[234,0,234,4],[235,0,235,5],[238,0,238,4],[239,0,239,5]]}
[" COMPOSIÇÃO DE PREÇO UNITÁRIO - SAA REMANSO - SERVIÇOS ELÉTRICOS"]
[null,"Mês/Ano de coleta dos preços SINAPI","2017-08-01"]
[null,"Mês/Ano de coleta dos preços ORSE","2017-07-01"]
[null,"Encargos sociais",{"$f":"'[1]Det_ Enc_ Soc_'!$F$49","v":0.91700000000000004}]
[null,"BDI (Material)",{"$f":"'[1]BDI Materiais'!$D$26","v":0.20995295318453988}]
[null,"BDI (mão-de-obra)",{"$f":"'[1]BDI Serviços'!$D$26","v":0.28453227601558151}]
[]
[]
[null," COMPOSIÇÃO DE PREÇO UNITÁRIO",null,"ITEM:","1.1.1"]
[]
["SERVIÇO:","Fornecimento dos materiais e equipamentos para a interligação da rede de média tensão existente em 13.8KV e o ramal de entrada, o qual contempla extensão da rede de média tensão, cubículo de medição, disjuntor, chave seccionadora em 13.8KV e demais acessórios necessários.",null,null,"unidade : Unid"]
["EQUIPAMENTO"]
["CÓDIGO","DESCRIÇÃO","UNIDADE","QUANT.","P.UNIT.","P.TOTAL"]
[]
["SUB-TOTAL",{"$nulls":4},{"$f":"SUM(F14:F14)","v":0}]
["MATERIAL"]
["CÓDIGO","DESCRIÇÃO","UNIDADE","QUANT.","P.UNIT.","P.TOTAL"]
["01866/ORSE","Poste em concreto, Duplo T, altura 11m, carga nominal 600Kg","unid.",1,876.78,{"$f":"ROUND(D18*E18,2)","v":876.78}]
["01867/ORSE","Poste em concreto, Duplo T, altura 11m, carga nominal 1000Kg","unid.",1,1412.59,{"$f":"ROUND(D19*E19,2)","v":1412.59}]
[25002,"Cabo de alumínio nu com alma de aço, bitola 2AWG","kg",25,21.89,547.25]
["03248/ORSE","Cruzeta de concreto tipo T 2400mm 200 Kg","unid.",6,264,1584]
[3406,"Isolador polimérico de pino 15KV","unid.",6,25.5,153]
[11837,"Grampo linha viva de alumínio cabo principal (10-120mm2) derivação (10-70mm2)","unid.",9,33.86,304.74]
[402,"Gancho suspensão olhal em aço galvanizado, espessura 16mm, abertura 21mm","unid.",9,9.64,86.76]
[417,"Alça pre-formada de distribuição, em aço galvanizado, para cabo alumínio 25mm2","unid.",6,2.4500000000000002,14.7]
[5047,"Chave fusível de distribuição 15KV/100A","unid.",3,173.41,520.23]
["10661/ORSE","Elo fusível","unid.",3,7.92,23.76]
[4276,"Para-raios de distribuição 15KV / 5KA","unid.",3,190.78,572.34]
["04353/ORSE","Suporte para mufla ","unid.",4,55,220]
[4161,"Mufla terminal primaria unipolar uso interno para cabo 35/120mm2 isolacao 15kv em epr - borracha de silicone","unid.",4,222.32,889.28]
[430,"Parafuso M16 (rosca máquina d=16mm)x125mm cab. quadrada - zincagem a fogo","unid.",9,4.38,39.42]
[432,"Parafuso M16 (rosca máquina d=16mm)x250mm cab. quadrada - zincagem a fogo","unid.",15,6.42,96.3]
[11790,"Parafuso M16 (rosca máquina d=16mm)x450mm cab. quadrada - zincagem a fogo","unid.",12,12.98,155.76]
[421,"Porca olhal aço galvanizado para parafuso diâmetro de 16mm","unid.",72,8.5299999999999994,614.16]
[379,"Arruela quadrada galvanizada D=38mm esp = 3mm furo=18mm","unid.",108,0.57999999999999996,62.64]
[21132,"Eletroduto em ferro galvanizado pesado Ø 4\"","m",6,43.33,259.98]
[2641,"Luva para eletroduto em ferro galvanizado Ø 4\"","unid.",4,10.72,42.88]
[2621,"Curva 90° para eletroduto em ferro galvanizado Ø 4\"","unid.",2,60.9,121.8]
[2628,"Curva 135° para eletroduto em ferro galvanizado Ø 4\"","unid.",1,86.2,86.2]
[34643,"Caixa de inspeção em polietileno para aterramento e para raios D=300mm","unid.",4,10.37,41.48]
[3380,"Haste de aterramento DN 5/8 \"x3000mm, em aço revestido com camada de cobre eletrolítico, com conector tipo grampo","unid.",4,34.409999999999997,137.63999999999999]
["11203/ORSE","Solda exotérmica - cartucho","unid.",6,31,186]
["09691/ORSE","Solda exotérmica - molde","unid.",2,121.11,242.22]
[867,"Cabo de cobre nu 50mm2","m",70,20.059999999999999,1404.2]
[873,"Cabo de cobre, blindado, isolação para 12/20KV, diametro de 50 mm² - tipo Voltalene XLPE fab. Prysmian ou similar","m",80,68.8,5504]
[1577,"Terminal de compressão para cabo de 35 mm²","unid.",18,1.41,25.38]
[1578,"Terminal de compressão para cabo de 50 mm²","unid.",6,2.44,14.64]
[39693,"Caixa Metálica para Instalação do Medidor - dim.: 1000x1000m - Padrão COELBA","unid.",1,1129,1129]
[2683,"Eletroduto em PVC rígido roscável de Ø 4\"","m",6,24.81,148.86000000000001]
[1895,"Luva para eletroduto em PVC rígido roscável de Ø 4\"","unid.",4,17.190000000000001,68.760000000000005]
[1878,"Curva 90° para eletroduto em PVC rígido roscável de Ø 4\"","unid.",2,30.26,60.52]
[39216,"Arruela em alumínio, com rosca, para eletroduto de Ø 4\"","unid.",6,5.2,31.2]
[39182,"Bucha em alumínio, com rosca, para eletroduto de Ø 4\"","unid.",6,6.43,38.58]
[4168,"Mufla terminal primaria unipolar uso interno para cabo 35/120mm2 isolacao 15kv em epr - borracha de silicone","unid.",3,230.98,692.94]
["09746/ORSE","Cubículo trifásico, blindado, isolado a ar, aplicação ao tempo, classe de isolação 15 KV / 60 HZ, tensão suportável de curta duração a freqüência industrial de 35 KV, Tensão suportável de impulso de 95 KV, corrente de curta duração, 3s de 31,5 KA, corrente de pico á 50/60 Hz, 80/82 KA, corrente de corte em curto circuito 31,5 KA, corrente de fechamento em curto circuito á 50/60 Hz 80/82 KA, corrente de serviço nas barras 1.250 A , fabricado em chapa de aço carbono SAE1020, bitola 12 MSG, para estrutura de 3,35 mm, fechamento 2,6 mm, divisórias 2,6 mm, padrão metal clad; tampas trazeiras aparafusadas, portas frontais com fecho Cremona e dobradiças, venezianas com telas, olhais de içamento, tampa de despressurização na lateral, teto com declive para trás, compartimento acoplado, medindo 2.300 x 2.100 mm, pintado com tinta epóxi, processo eletrostático, cor interna e externa cinza munsell N6.5,  grau de proteção externo IP-54, e interno IP-65, com entrada e saída em 13.8 KV, na parte inferior do cubículo,  para manobra e proteção de subestação, e espaço para medição da concessionária de energia elétrica, montado com os equipamentos e materiais abaixo especificados. Esses cubículo serão subdivididos em três módulos, sendo eles: módulo 01 local onde será instalado o mediro da concessinária; módulo 02 local onde será instalado o disjuntor de entrada; módulo 03 local onde será instalada a chave seccionadora; esses módulos deverão estar interligados através de barramentos.","unid.",1,28096.36,28096.36]
["09211/ORSE","Disjuntor tripolar a vácuo, classe de tensão 15KV, tensão nominal em 13.8 KV, corrente nominal ajustável de 40 a 160A, execução extraível, capacidade de abertura de interrupção em 25 KA/NBI, c/ bobina de mínima em 220 VCA 60 HZ, e bobina de abertura, fechamento e motorização em 125 VCC c/ intertravamento KirK contatos auxiliares 4NAF.","unid.",1,28653.08,28653.08]
[39474,"Dipositivo DPS, classe II, 1polo, tensão máxima 385V, corrente máxima 30KA","unid.",4,116.46,465.84]
["11211/ORSE","Chave seccionadora trifasica, classe de tensão 15KV, tensão nominal em 13.8 KV, corrente nominal de 300 A, com fusivel de 25 KA, mecanismo de abertura e fechamento, intertravamento com o disjuntor do cubiculo","unid.",1,1970.67,1970.67]
["11200/ORSE","Fusivel HH, 15KV","unid.",3,118.66,355.98]
["09193/ORSE","Disparador  trip capacitivo 220 VCA","unid.",1,2095.0500000000002,2095.0500000000002]
["04495/ORSE","Voltímetro digital alim; 125 VCC, dim 96 x 96 mm escala de  0-250V relação 13,8/0,115 KV","unid.",1,160,160]
["11934/ORSE","Amperímetro digital, alim; 125 VCC,  dim 96 x 96 mm escala de  0-100/5a","unid.",1,171.66,171.66]
["10216/ORSE","Transformador de potencial encapsulado em resina de  epóxi, classe de tensão 15KV relação de transformação 13.800 / 220-115 VCA, classe de exatidão 0,6P75, Potencia de 1.000 VA","unid.",3,2387.4899999999998,7162.47]
["12391/ORSE","Transformador de corrente encapsulado em resina de epóxi relação 200/5A classe de tensão 15KV tensão nominal 13.8KV classe de exatidão 0,6c12, classe de precisão 10B200","unid.",3,249.58,748.74]
[2370,"Disjuntor termomagnético monofásico, curva C corrente nominal 10A  ICC 10KA em 220K","unid.",3,10.95,32.85]
[2392,"Disjuntor termomagnético trifasico, curva C corrente nominal 20 A  ICC 10KA em 220K","unid.",3,73.5,220.5]
["08555/ORSE","Relé para proteção de sub-estações microprocessado digital  multifunção, função 37+46+47+48+49+50/51 + 51N+50BF+66, alimentação 125 VCC;","unid.",1,21387.34,21387.34]
["09147/ORSE","Multi medidor de grandezas elétricas, digital dim 96 x 96 mm trifásico em 220 Vca, corrente de 0 á 5 A, alimentação em 125 VCC, executa registro dos valores de fator de potencia tensão e corrente, potencia ativa, reativa e aparente, KVAR faltante e outros","unid.",1,2464.64,2464.64]
[1623,"Contator auxiliar 10A 4NA 125 VCC;","unid.",3,141.13999999999999,423.42]
[1623,"Contator auxiliar 10A 2NA + 2NF 125 Vcc;","unid.",3,141.13999999999999,423.42]
["04855/ORSE","Sinalizador luminoso, diâmetro de furação 30,5mm, equipado c/ lâmpada Led - AM","unid.",1,31.2,31.2]
["04855/ORSE","Sinalizador luminoso, diâmetro de furação 30,5mm, equipado c/ lâmpada Led - VD","unid.",1,31.2,31.2]
["04855/ORSE","Sinalizador luminoso, diâmetro de furação 30,5mm, equipado c/ lâmpada Led - VM","unid.",1,31.2,31.2]
["04492/ORSE","Chave comutadora de voltímetro ","unid.",1,85.9,85.9]
["04863/ORSE","Borne 2,5 mm","unid.",5,4.5,22.5]
["10325/ORSE","Botão de abertura de emergencia, instalação na porta do painel","unid.",1,103.97,103.97]
[1014,"Cabo de cobre flexível, antichama, 750V, #2,5mm² - VM","m",100,1.01,101]
[1014,"Cabo de cobre flexível, antichama, 750V, #2,5mm² - PT","m",400,1.01,404]
[1014,"Cabo de cobre flexível, antichama, 750V, #2,5mm² - AZ","m",200,1.01,202]
[1014,"Cabo de cobre flexível, antichama, 750V, #2,5mm² - VD","m",200,1.01,202]
["04666/ORSE","Terminal preisolado tipo pino para cabo de 2,5 mm","unid.",100,0.35,35]
["00181/ORSE","Kit anilha numérica de 0 á 9 com 10 unidades de cada, para cabo de 2,5 mm","unid.",100,0.05,5]
["SUB-TOTAL",{"$nulls":4},{"$f":"ROUND(SUM(F18:F82),2)","v":114496.98}]
["MÃO DE OBRA"]
["CÓDIGO","DESCRIÇÃO","UNIDADE","QUANT.","P.UNIT.","P.TOTAL"]
[]
["SUB-TOTAL",{"$nulls":4},{"$f":"ROUND(SUM(F86:F86),2)","v":0}]
[]
[null,"A) CUSTO UNITÁRIO TOTAL - SEM BDI",null,null,null,{"$f":"ROUND(F15+F83+F87,2)","v":114496.98}]
[null,"B) BDI (Material)",null,null,{"$f":"'[1]BDI Materiais'!$D$26","v":0.20995295318453988},{"$f":"ROUND(E90*(F83),2)","v":24038.98}]
[null,"C) BDI (mão-de-obra)",null,null,{"$f":"'[1]BDI Serviços'!$D$26","v":0.28453227601558151},{"$f":"ROUND((F87+F15)*E91,2)","v":0}]
[null,"PREÇO UNITÁRIO TOTAL (A+B+C)",null,null,null,{"$f":"ROUND(SUM(F89:F91),2)","v":138535.96}]
[]
[null," COMPOSIÇÃO DE PREÇO UNITÁRIO",null,"ITEM:","1.1.2"]
[]
["SERVIÇO:","Fornecimento dos materiais e equipamentos para a interligação do cubículo de média tensão em 13.8KV e o primário do transformador de 112,5KVA.",null,null,"unidade : Unid"]
["EQUIPAMENTO"]
["CÓDIGO","DESCRIÇÃO","UNIDADE","QUANT.","P.UNIT.","P.TOTAL"]
[]
["SUB-TOTAL",{"$nulls":4},{"$f":"SUM(F99:F99)","v":0}]
["MATERIAL"]
["CÓDIGO","DESCRIÇÃO","UNIDADE","QUANT.","P.UNIT.","P.TOTAL"]
[21132,"Eletroduto em ferro galvanizado pesado Ø 4\"","m",12,43.33,{"$f":"ROUND(D103*E103,2)","v":519.96}]
[2641,"Luva para eletroduto em ferro galvanizado Ø 4\"","unid.",6,10.72,64.319999999999993]
[2621,"Curva 90° para eletroduto em ferro galvanizado Ø 4\"","unid.",2,60.9,121.8]
[2683,"Eletroduto em PVC rígido roscável de Ø 4\"","m",6,24.81,148.86000000000001]
[1895,"Luva para eletroduto em PVC rígido roscável de Ø 4\"","unid.",4,17.190000000000001,68.760000000000005]
[1878,"Curva 90° para eletroduto em PVC rígido roscável de Ø 4\"","unid.",2,30.26,60.52]
[873,"Cabo de cobre, blindado, isolação para 12/20KV, diametro de 50 mm² - tipo Voltalene XLPE fab. Prysmian ou similar","m",11750,68.8,808400]
["03852/ORSE","Mufla/Terminação termocontratil à frio isolação para 12/20KV, para cabo de 50 mm²","unid.",30,525,15750]
["06528/ORSE","Eletroduto corrugado flexivel Ø 5\" em PEAD, para cabeamento subterraneo, tipo Kanaflex ou similar","m",3750,12.62,47325]
["09153/ORSE","Conexão / emenda kanaflex Ø 5\"","unid.",40,17.52,700.8]
["06510/ORSE","Tampao/terminal 5\" p/ dutos tp kanaflex","unid.",20,16.73,334.6]
[34643,"Caixa de inspeção em polietileno para aterramento e para raios D=300mm","unid.",6,10.37,62.22]
[3380,"Haste de aterramento DN 5/8 \"x3000mm, em aço revestido com camada de cobre eletrolítico, com conector tipo grampo","unid.",6,34.409999999999997,206.46]
["11203/ORSE","Solda exotérmica - cartucho","unid.",18,31,558]
["09691/ORSE","Solda exotérmica - molde","unid.",2,121.11,242.22]
[867,"Cabo de cobre nu 50mm2","m",80,20.059999999999999,1604.8]
[1578,"Terminal de compressão para cabo de 50 mm²","unid.",8,2.44,19.52]
[7619,"Transformador de distribuição trifasico, potencia de 112,5 KVA, relação de transformação de 13.800 / 380-220 VCA 60Z, tipo blindado, aplicação ao tempo, buchas primarias e secundarias, instaladas horizontalmente, protegidas através de  caixa em chapa de aço, com tampas parafusadas. Com assessorios do tipo rele detector de gases, rele de nivel e reservatório de silicagel.","unid.",1,11120.64,11120.64]
["SUB-TOTAL",{"$nulls":4},{"$f":"ROUND(SUM(F103:F120),2)","v":887308.48}]
["MÃO DE OBRA"]
["CÓDIGO","DESCRIÇÃO","UNIDADE","QUANT.","P.UNIT.","P.TOTAL"]
[]
["SUB-TOTAL",{"$nulls":4},{"$f":"ROUND(SUM(F124:F124),2)","v":0}]
[]
[null,"A) CUSTO UNITÁRIO TOTAL - SEM BDI",null,null,null,{"$f":"ROUND(F100+F121+F125,2)","v":887308.48}]
[null,"B) BDI (Material)",null,null,{"$f":"'[1]BDI Materiais'!$D$26","v":0.20995295318453988},{"$f":"ROUND(E128*(F121),2)","v":186293.04}]
[null,"C) BDI (mão-de-obra)",null,null,{"$f":"'[1]BDI Serviços'!$D$26","v":0.28453227601558151},{"$f":"ROUND((F125+F100)*E129,2)","v":0}]
[null,"PREÇO UNITÁRIO TOTAL (A+B+C)",null,null,null,{"$f":"ROUND(SUM(F127:F129),2)","v":1073601.52}]
[]
[null," COMPOSIÇÃO DE PREÇO UNITÁRIO",null,"ITEM:","2.1.3"]
[]
["SERVIÇO:","Fornecimento dos materiais e equipamentos para a interligação do secundário do transformador de 112,5KVA ao Painel Geral de Baixa Tensão (QGBT) e cojuntos motobombas - o qual contempla um painel modular com disjuntor principal, os acionamentos e proteções dos conjuntos motobombas e a interligação elétrica aos motores",null,null,"unidade : Unid"]
["EQUIPAMENTO"]
["CÓDIGO","DESCRIÇÃO","UNIDADE","QUANT.","P.UNIT.","P.TOTAL"]
[]
["SUB-TOTAL",{"$nulls":4},{"$f":"SUM(F137:F137)","v":0}]
["MATERIAL"]
["CÓDIGO","DESCRIÇÃO","UNIDADE","QUANT.","P.UNIT.","P.TOTAL"]
[2683,"Eletroduto em PVC rígido roscável de Ø 4\"","m",6,24.81,{"$f":"ROUND(D141*E141,2)","v":148.86000000000001}]
[1895,"Luva para eletroduto em PVC rígido roscável de Ø 4\"","unid.",4,17.190000000000001,68.760000000000005]
[1878,"Curva 90° para eletroduto em PVC rígido roscável de Ø 4\"","unid.",2,30.26,60.52]
[998,"Cabo de cobre, flexível, isolação em PVC, antichama BWF-B, cobertura PVC-ST1, 1 condutor, 0,6/1 KV, seção nominal #95mm²","m",80,39.72,3177.6]
[1580,"Terminal de compressão para cabo de 95 mm²","unid.",8,3.75,30]
[1018,"Cabo de cobre, flexível, isolação em PVC, antichama BWF-B, cobertura PVC-ST1, 1 condutor, 0,6/1 KV, seção nominal #50mm²","m",20,21.58,431.6]
[1578,"Terminal de compressão para cabo de 50 mm²","unid.",2,2.44,4.88]
["10104/ORSE","QGBT - Painel modular 1,00x1,0x0,40m, IP 54, a ser instalado no piso. O painel deverá possuir barramentos e demais acessórios necessários, conectando o disjuntor geral de 160A e os painéis CCM.","unid.",1,1478.52,1478.52]
[34729,"Disjuntor tripolar em caixa moldada tensão de serviço de 690 V, corrente nominal ajustável de 80 até 160 A, com unidade de disparo do tipo analise da qualidade de energia, proteção contra falta a terra e fuga a terra, tipo NS.","unid.",1,1100.83,1100.83]
[39474,"Dipositivo DPS, classe II, 1polo, tensão máxima 385V, corrente máxima 30KA","unid.",4,116.46,465.84]
["04495/ORSE","Voltímetro digital alim; 125 VCC, dim 96 x 96 mm escala de  0-500V / 5A","unid.",1,160,160]
["11934/ORSE","Amperímetro digital, alim; 125 VCC,  dim 96 x 96 mm escala de  0-400/5a","unid.",1,171.66,171.66]
["04497/ORSE","Transformador de corrente encapsulado em resina de epóxi relação 200/5A, classe de tensão 660V","unid.",3,142.19999999999999,426.6]
[2370,"Disjuntor termomagnético monofásico, curva C corrente nominal 10A  ICC 10KA em 220 K","unid.",2,10.95,21.9]
[2392,"Disjuntor termomagnético trifasico, curva C corrente nominal 20 A  ICC 10KA em 220 K","unid.",2,73.5,147]
["09147/ORSE","Multi medidor de grandezas elétricas, digital dim 96 x 96 mm trifásico em 220 Vca, corrente de 0 á 5 A, alimentação em 125 VCC, executa registro dos valores de fator de potencia tensão e corrente, potencia ativa, reativa e aparente, KVAR faltante e outros","unid.",1,2464.64,2464.64]
[1623,"Contator auxiliar 10A 4NA 125 VCC;","unid.",2,141.13999999999999,282.27999999999997]
[1623,"Contator auxiliar 10A 2NA + 2NF 125 Vcc;","unid.",2,141.13999999999999,282.27999999999997]
["04855/ORSE","Sinalizador luminoso, diâmetro de furação 30,5mm, equipado c/ lâmpada Led - AM","unid.",1,31.2,31.2]
["04855/ORSE","Sinalizador luminoso, diâmetro de furação 30,5mm, equipado c/ lâmpada Led - VD","unid.",1,31.2,31.2]
["04855/ORSE","Sinalizador luminoso, diâmetro de furação 30,5mm, equipado c/ lâmpada Led - VM","unid.",1,31.2,31.2]
["04492/ORSE","Chave comutadora de voltímetro ","unid.",1,85.9,85.9]
["04863/ORSE","Borne 2,5 mm","unid.",5,4.5,22.5]
["10325/ORSE","Botão de abertura de emergencia, instalação na porta do painel","unid.",1,103.97,103.97]
[1014,"Cabo de cobre flexível, antichama, 750V, #2,5mm² - VM","m",100,1.01,101]
[1014,"Cabo de cobre flexível, antichama, 750V, #2,5mm² - PT","m",200,1.01,202]
[1014,"Cabo de cobre flexível, antichama, 750V, #2,5mm² - AZ","m",100,1.01,101]
[1014,"Cabo de cobre flexível, antichama, 750V, #2,5mm² - VD","m",100,1.01,101]
["04666/ORSE","Terminal preisolado tipo pino para cabo de 2,5 mm","unid.",100,0.35,35]
["00181/ORSE","Kit anilha numérica de 0 á 9 com 10 unidades de cada, para cabo de 2,5 mm","unid.",100,0.05,5]
["11450/ORSE","Trilho DIM tipo régua 35mm com 2m de comprimento","und.",1,18.7,18.7]
[39246,"Eletroduto corrugado flexivel Ø 1.1/2\" em PEAD, para cabeamento subterraneo, tipo Kanaflex ou similar","m",100,2.78,278]
["SUB-TOTAL",{"$nulls":4},{"$f":"ROUND(SUM(F141:F172),2)","v":12071.44}]
["MÃO DE OBRA"]
["CÓDIGO","DESCRIÇÃO","UNIDADE","QUANT.","P.UNIT.","P.TOTAL"]
[]
["SUB-TOTAL",{"$nulls":4},{"$f":"ROUND(SUM(F176:F176),2)","v":0}]
[]
[null,"A) CUSTO UNITÁRIO TOTAL - SEM BDI",null,null,null,{"$f":"ROUND(F138+F173+F177,2)","v":12071.44}]
[null,"B) BDI (Material)",null,null,{"$f":"'[1]BDI Materiais'!$D$26","v":0.20995295318453988},{"$f":"ROUND(E180*(F173),2)","v":2534.4299999999998}]
[null,"C) BDI (mão-de-obra)",null,null,{"$f":"'[1]BDI Serviços'!$D$26","v":0.28453227601558151},{"$f":"ROUND((F177+F138)*E181,2)","v":0}]
[null,"PREÇO UNITÁRIO TOTAL (A+B+C)",null,null,null,{"$f":"ROUND(SUM(F179:F181),2)","v":14605.87}]
[]
[null," COMPOSIÇÃO DE PREÇO UNITÁRIO",null,"ITEM:","2.2.1"]
[]
["SERVIÇO:","Serviços de supervisão de montagem e instalação da extensão de rede de média tensão, cubículos, subestação em 13.8 KV e  interligação ao CCM do conjunto motobomba, incluindo a operação asssistida por no mínimo 10 dias",null,null,"unidade : Unid"]
["EQUIPAMENTO"]
["CÓDIGO","DESCRIÇÃO","UNIDADE","QUANT.","P.UNIT.","P.TOTAL"]
[]
["SUB-TOTAL",{"$nulls":4},{"$f":"SUM(F189:F189)","v":0}]
["MATERIAL"]
["CÓDIGO","DESCRIÇÃO","UNIDADE","QUANT.","P.UNIT.","P.TOTAL"]
[]
["SUB-TOTAL",{"$nulls":4},{"$f":"ROUND(SUM(F193:F193),2)","v":0}]
["MÃO DE OBRA"]
["CÓDIGO","DESCRIÇÃO","UNIDADE","QUANT.","P.UNIT.","P.TOTAL"]
[2438,"Técnico Eletrotécnico","h/h",590,21.55,{"$f":"ROUND(D197*E197,2)","v":12714.5}]
[2436,"Eletricista","h/h",1170,14.06,16450.2]
[247,"Ajudante de Eletricista","h/h",2350,10.56,24816]
["SUB-TOTAL",{"$nulls":4},{"$f":"ROUND(SUM(F197:F199),2)","v":53980.7}]
[]
[null,"A) CUSTO UNITÁRIO TOTAL - SEM BDI",null,null,null,{"$f":"ROUND(F190+F194+F200,2)","v":53980.7}]
[null,"B) BDI (Material)",null,null,{"$f":"'[1]BDI Materiais'!$D$26","v":0.20995295318453988},{"$f":"ROUND(E203*(F194),2)","v":0}]
[null,"C) BDI (mão-de-obra)",null,null,{"$f":"'[1]BDI Serviços'!$D$26","v":0.28453227601558151},{"$f":"ROUND((F200+F190)*E204,2)","v":15359.25}]
[null,"PREÇO UNITÁRIO TOTAL (A+B+C)",null,null,null,{"$f":"ROUND(SUM(F202:F204),2)","v":69339.95}]
[]
[null," COMPOSIÇÃO DE PREÇO UNITÁRIO",null,"ITEM:","2.2.2"]
[]
["SERVIÇO:","Projeto executivo, com  descrição e detalhamento do projeto elétrico extensão de rede de média tensão, de força, comando e proteção; diagrama unifilar de AT/BT; layout de montagem; folhas de dados dos componentes e memorial de cálculo",null,null,"unidade : Unid"]
["EQUIPAMENTO"]
["CÓDIGO","DESCRIÇÃO","UNIDADE","QUANT.","P.UNIT.","P.TOTAL"]
[]
["SUB-TOTAL",{"$nulls":4},{"$f":"SUM(F212:F212)","v":0}]
["MATERIAL"]
["CÓDIGO","DESCRIÇÃO","UNIDADE","QUANT.","P.UNIT.","P.TOTAL"]
[]
["SUB-TOTAL",{"$nulls":4},{"$f":"ROUND(SUM(F216:F216),2)","v":0}]
["MÃO DE OBRA"]
["CÓDIGO","DESCRIÇÃO","UNIDADE","QUANT.","P.UNIT.","P.TOTAL"]
[34783,"Engenheiro Eletricista","h/h",220,83.33,{"$f":"ROUND(D220*E220,2)","v":18332.599999999999}]
[2358,"Desenhista Projetista","h/h",220,22.38,4923.6000000000004]
["SUB-TOTAL",{"$nulls":4},{"$f":"ROUND(SUM(F220:F221),2)","v":23256.2}]
[]
[null,"A) CUSTO UNITÁRIO TOTAL - SEM BDI",null,null,null,{"$f":"ROUND(F213+F217+F222,2)","v":23256.2}]
[null,"B) BDI (Material)",null,null,{"$f":"'[1]BDI Materiais'!$D$26","v":0.20995295318453988},{"$f":"ROUND(E225*(F217),2)","v":0}]
[null,"C) BDI (mão-de-obra)",null,null,{"$f":"'[1]BDI Serviços'!$D$26","v":0.28453227601558151},{"$f":"ROUND((F222+F213)*E226,2)","v":6617.14}]
[null,"PREÇO UNITÁRIO TOTAL (A+B+C)",null,null,null,{"$f":"ROUND(SUM(F224:F226),2)","v":29873.34}]
[]
[null," COMPOSIÇÃO DE PREÇO UNITÁRIO",null,"ITEM:","2.2.2"]
[]
["SERVIÇO:","Transporte de materiais e equipamentos dos serviços elétricos",null,null,"unidade : Unid"]
["EQUIPAMENTO"]
["CÓDIGO","DESCRIÇÃO","UNIDADE","QUANT.","P.UNIT.","P.TOTAL"]
[]
["SUB-TOTAL",{"$nulls":4},{"$f":"SUM(F234:F234)","v":0}]
["MATERIAL"]
["CÓDIGO","DESCRIÇÃO","UNIDADE","QUANT.","P.UNIT.","P.TOTAL"]
[]
["SUB-TOTAL",{"$nulls":4},{"$f":"ROUND(SUM(F238:F238),2)","v":0}]
["MÃO DE OBRA"]
["CÓDIGO","DESCRIÇÃO","UNIDADE","QUANT.","P.UNIT.","P.TOTAL"]
[5928,"Guincho tipo muck capacidade 6T  montado em caminhão carroceria","h/m",110,125.5,{"$f":"D242*E242","v":13805}]
[91030,"Caminhão trucado com 3 eixos - carga 10 a 12T","h/m",110,94.86,{"$f":"D243*E243","v":10434.6}]
["SUB-TOTAL",{"$nulls":4},{"$f":"ROUND(SUM(F242:F243),2)","v":24239.599999999999}]
[]
[null,"A) CUSTO UNITÁRIO TOTAL - SEM BDI",null,null,null,{"$f":"ROUND(F235+F239+F244,2)","v":24239.599999999999}]
[null,"B) BDI (Material)",null,null,{"$f":"'[1]BDI Materiais'!$D$26","v":0.20995295318453988},{"$f":"ROUND(E247*(F239),2)","v":0}]
[null,"C) BDI (mão-de-obra)",null,null,{"$f":"'[1]BDI Serviços'!$D$26","v":0.28453227601558151},{"$f":"ROUND((F244+F235)*E248,2)","v":6896.95}]
[null,"PREÇO UNITÁRIO TOTAL (A+B+C)",null,null,null,{"$f":"ROUND(SUM(F246:F248),2)","v":31136.55}]
[]
[]
[]
[]
[{"$nulls":20},{"$f":"R254-T254","v":0}]

{"sheet":"Cronograma","index":7,"n_rows":29,"n_cols":13,"rows_kept":29,"cut":false,"hidden":false,"merged":[[4,0,4,6],[6,0,6,6],[2,0,2,6],[1,0,1,6],[0,0,0,6],[11,0,12,0],[11,1,12,1],[11,2,12,2],[5,0,5,5],[8,0,9,0],[8,1,9,1],[8,2,9,2],[8,3,8,6],[10,0,10,6],[17,0,18,0],[17,1,18,1],[17,2,18,2],[21,2,22,2],[13,0,14,0],[13,1,14,1],[13,2,14,2],[15,0,16,0],[15,1,16,1],[15,2,16,2],[23,2,24,2],[19,0,20,0],[19,1,20,1],[21,0,22,0],[21,1,22,1],[23,0,24,0],[23,1,24,1],[19,2,20,2]]}
["MINISTÉRIO DA INTEGRAÇÃO NACIONAL"]
["COMPANHIA DE DESENVOLVIMENTO DOS VALES DO SÃO FRANCISCO E DO PARNAÍBA"]
["6ª SUPERINTENDÊNCIA REGIONAL"]
[]
["OBJETO: Execução de obras e serviços de engenharia relativos à readequação da captação do sistema de abastecimento de água da sede do Município de Remanso, no estado da Bahia."]
[]
["CRONOGRAMA FÍSICO E FINANCEIRO"]
[{"$nulls":8},{"$f":"Serviços!H10","v":360072.11}]
["ITEM","DESCRIÇÃO DOS SERVIÇOS","UNID.","DIAS",{"$nulls":4},{"$f":"I10+I11+I12","v":360072.11},{"$f":"J11+J12+J10","v":159663.06093050027},{"$f":"K11+K12+K10","v":53783.275099979379},{"$f":"L11+L12+L10","v":94212.126321422882},{"$f":"M11+M12+M10","v":52413.647648097474}]
[null,null,null,30,60,90,120,null,{"$f":"Serviços!H14","v":52474.39},{"$f":"I10/2","v":26237.195},null,null,{"$f":"I10/2","v":26237.195}]
["LOTE I",{"$nulls":7},{"$f":"I8-I12-I10","v":105532.81999999999},{"$f":"I11","v":105532.81999999999}]
[1,"SERVIÇOS PRELIMINARES ",{"$f":"Serviços!H10","v":360072.11},{"$f":"D13/$C$12","v":0.44341968315874364},{"$f":"E13/$C$12","v":0.14936806713516185},{"$f":"F13/$C$12","v":0.26164794135658798},{"$f":"G13/$C$12","v":0.14556430834950665},"Administração",{"$f":"Serviços!H11","v":202064.9},{"$f":"I12*J16","v":27893.045930500281},{"$f":"I12*K16","v":53783.275099979379},{"$f":"I12*L16","v":94212.126321422882},{"$f":"I12*M16","v":26176.452648097475}]
[null,null,null,{"$f":"J9","v":159663.06093050027},{"$f":"K9","v":53783.275099979379},{"$f":"L9","v":94212.126321422882},{"$f":"M9","v":52413.647648097474}]
[2,"ASSENTAMENTO DA REDE ADUTORA E DA REDE ELÉTRICA ENTERRADA",{"$f":"Serviços!H45+Serviços!H58","v":550700.45999999985},{"$f":"D15/$C$14","v":0.2},{"$f":"E15/$C$14","v":0.4},0.4,0,null,{"$f":"C27-I12","v":3409961.53},{"$f":"D15+D19+D23+D25+D17+D21","v":338941.19500000001},{"$f":"E15+E19+E23+E25+E17+E21","v":907623.73399999994},1589883.8760000002,415505.51500000001]
[null,null,null,{"$f":"C14*0.2","v":110140.09199999998},{"$f":"C14*0.4","v":220280.18399999995},{"$f":"C14*0.4","v":220280.18399999995},null,null,null,{"$f":"J14+J11+J10","v":470711.21},{"$f":"K14+K11+K10","v":907623.73399999994},{"$f":"L14+L11+L10","v":1589883.8760000002},{"$f":"M14+M11+M10","v":441742.71}]
[3,"PROTEÇÃO DAS  INSTALAÇÕES ELÉTRICAS E CASA DE COMANDO",{"$f":"Serviços!H15+Serviços!H41+Serviços!H23","v":27950.449999999997},{"$f":"D17/$C$16","v":0},{"$f":"E17/$C$16","v":0.5},0.5,0,null,null,{"$f":"J15/$I$14","v":0.13804003530796433},{"$f":"K15/$I$14","v":0.26616832067310742},{"$f":"L15/$I$14","v":0.46624686584074171},{"$f":"M15/$I$14","v":0.12954477817818669}]
[null,null,null,0,{"$f":"C16/2","v":13975.224999999999},{"$f":"C16/2","v":13975.224999999999},{"$f":"D16/2","v":0}]
[4,"MATERIAIS (captação e adução)",{"$f":"Materias!I47","v":930917.84},{"$f":"D19/$C$18","v":0.1},{"$f":"E19/$C$18","v":0.3},0.5,0.1]
[null,null,null,{"$f":"C18*0.1","v":93091.784},{"$f":"C18*0.3","v":279275.35199999996},{"$f":"C18*0.5","v":465458.92},{"$f":"C18*0.1","v":93091.784}]
[5,"CAPTAÇÃO FLUTUANTE - SERVIÇOS",{"$f":"Serviços!H60","v":385292.38},{"$f":"D21/$C$20","v":0},{"$f":"E21/$C$20","v":0},0.6,0.4]
[{"$nulls":5},{"$f":"C20*0.6","v":231175.42799999999},{"$f":"C20*0.4","v":154116.95200000002}]
[6,"INSTALAÇÃOES ELÉTRICAS - FORNECIMENTO",{"$f":"Plan_Orc_Eletric!G14","v":1226743.3500000001},{"$f":"D23/$C$22","v":0.1},{"$f":"E23/$C$22","v":0.3},0.5,0.1]
[null,null,null,{"$f":"C22*0.1","v":122674.33500000002},{"$f":"C22*0.3","v":368023.005},{"$f":"C22*0.5","v":613371.67500000005},{"$f":"C22*0.1","v":122674.33500000002}]
[7,"INSTALAÇÃOES ELÉTRICAS - SERVIÇOS",{"$f":"Plan_Orc_Eletric!G19","v":130349.84},{"$f":"D25/$C$24","v":0.1},{"$f":"E25/$C$24","v":0.2},0.35,0.35]
[null,null,null,{"$f":"C24*0.1","v":13034.984},{"$f":"C24*0.2","v":26069.968000000001},{"$f":"C24*0.35","v":45622.443999999996},{"$f":"C24*0.35","v":45622.443999999996}]
[null,null,null,{"$f":"D27/$C$27","v":0.1380400353079643},{"$f":"E27/$C$27","v":0.26616832067310736},{"$f":"F27/$C$27","v":0.46624686584074165},{"$f":"G27/$C$27","v":0.12954477817818669}]
[null,"Total Geral",{"$f":"SUM(C12,C14,C16,C18,C20,C22,C24)","v":3612026.4299999997},{"$f":"SUM(D13+D15+D17+D19+D21+D23+D25)","v":498604.25593050022},{"$f":"SUM(E13+E15+E17+E19+E21+E23+E25)","v":961407.00909997919},{"$f":"SUM(F13+F15+F17+F19+F21+F23+F25)","v":1684096.0023214228},{"$f":"SUM(G13+G15+G17+G19+G21+G23+G25)","v":467919.16264809755}]
[null,null,null,{"$f":"D26","v":0.1380400353079643},{"$f":"E26+D28","v":0.40420835598107163},0.87045522182181334,1]
[null,"Total Geral Acumulado",{"$f":"D27+E27+F27+G27","v":3612026.4299999997},{"$f":"D27","v":498604.25593050022},1460011.2650304795,3144107.2673519021,3612026.4299999997]

{"sheet":"Det_Encarg Sociais","index":8,"n_rows":49,"n_cols":7,"rows_kept":49,"cut":false,"hidden":false,"merged":[[46,0,46,4],[47,0,47,6],[48,0,48,4],[40,1,40,4],[41,0,41,4],[42,0,42,6],[43,1,43,4],[44,1,44,4],[45,1,45,4],[39,1,39,4],[28,1,28,4],[29,1,29,4],[30,1,30,4],[31,1,31,4],[32,1,32,4],[33,0,33,4],[34,0,34,6],[35,1,35,4],[36,1,36,4],[37,1,37,4],[38,1,38,4],[27,1,27,4],[16,1,16,4],[17,1,17,4],[18,1,18,4],[19,1,19,4],[20,0,20,4],[21,0,21,6],[22,1,22,4],[23,1,23,4],[24,1,24,4],[25,1,25,4],[26,1,26,4],[15,1,15,4],[0,1,0,6],[1,1,1,6],[2,1,2,6],[4,0,5,6],[6,0,7,6],[8,0,9,4],[10,1,10,4],[11,1,11,4],[12,1,12,4],[13,1,13,4],[14,1,14,4]]}
[null,"                                       Ministério da Integração Nacional - MI"]
[null,"                                       Companhia  de  Desenvolvimento  dos  Vales  do  São  Francisco e do Parnaíba"]
[null,"                                       6ª Superintendência Regional"]
[]
["DETALHAMENTO DOS ENCARGOS SOCIAIS"]
[]
[]
[]
["DESCRIÇÃO",{"$nulls":4},"Horista","Mensalista"]
[{"$nulls":5},"%","%"]
["A","ENCARGOS SOCIAIS BÁSICOS"]
["A1","INSS - Previdência Social",null,null,null,0,0]
["A2","SESI - Serviço Social da Indústira",null,null,null,1.4999999999999999E-2,1.4999999999999999E-2]
["A3","SENAI - Serviço Nacional de Aprendizagem Industria",null,null,null,0.01,0.01]
["A4","INCRA - Instituto Nacional de Colonização e Reforma Agrária",null,null,null,2E-3,2E-3]
["A5","SEBRAE - Serviço de Apoio a Pequena e Média Empresa ",null,null,null,6.0000000000000001E-3,6.0000000000000001E-3]
["A6","Salário Educação ",null,null,null,2.5000000000000001E-2,2.5000000000000001E-2]
["A7","Seguro contra os acidentes de trabalho",null,null,null,0.03,0.03]
["A8","FGTS - Fundo de Garantia por Tempo de Serviço",null,null,null,0.08,0.08]
["A9","SECONCI - Serviço Social da Indústria da Construção e do Mobiliário",null,null,null,0,0]
["SUBTOTAL DE \"A\"",{"$nulls":4},{"$f":"ROUND(SUM(F12:F20),4)","v":0.16800000000000001},{"$f":"ROUND(SUM(G12:G20),4)","v":0.16800000000000001}]
[]
["B"," ENCARGOS SOCIAIS QUE RECEBEM INCIDÊNCIA DE \"A\""]
["B1","Repouso Semanal e feriados",null,null,null,0.1799,0]
["B2","Feriados",null,null,null,3.9699999999999999E-2,0]
["B3","Auxílio enfermidade",null,null,null,9.1999999999999998E-3,6.8999999999999999E-3]
["B4","13º Salário  ",null,null,null,0.1109,8.3299999999999999E-2]
["B5","Licença paternidade",null,null,null,8.9999999999999998E-4,5.9999999999999995E-4]
["B6","Faltas justificadas",null,null,null,7.4000000000000003E-3,5.5999999999999999E-3]
["B7","Dias de Chuva",null,null,null,2.0799999999999999E-2,0]
["B8","Auxílio acidente de trabalho",null,null,null,1.2999999999999999E-3,8.9999999999999998E-4]
["B9","Férias gozadas",null,null,null,0.1207,9.0700000000000003E-2]
["B10","Salário maternidade",null,null,null,2.9999999999999997E-4,2.0000000000000001E-4]
["SUBTOTAL DE  \"B\"",{"$nulls":4},{"$f":"ROUND(SUM(F24:F33),4)","v":0.49109999999999998},{"$f":"ROUND(SUM(G24:G33),4)","v":0.18820000000000001}]
[]
["C"," ENCARGOS SOCIAIS QUE NÃO RECEBEM INCIDÊNCIA DE \"A\""]
["C1","Aviso prévio indenizado",null,null,null,7.8600000000000003E-2,5.91E-2]
["C2","Aviso prévio trabalhado",null,null,null,4.1000000000000003E-3,3.0999999999999999E-3]
["C3","Férias indenizadas",null,null,null,2.6499999999999999E-2,1.9900000000000001E-2]
["C4","Depósito rescisão sem justa causa",null,null,null,5.2600000000000001E-2,3.95E-2]
["C5","Indenização adicional",null,null,null,6.6E-3,5.0000000000000001E-3]
["SUBTOTAL DE \"C\"",{"$nulls":4},{"$f":"ROUND(SUM(F37:F41),4)","v":0.16839999999999999},{"$f":"ROUND(SUM(G37:G41),4)","v":0.12659999999999999}]
[]
["D"," REINCIDÊNCIAS"]
["D1","Reincidência de Grupo \"A\" sobre Grupo \"B\"",null,null,null,8.2500000000000004E-2,3.1600000000000003E-2]
["D2","Reincidência de Grupo \"A\" sobre Aviso Prévio Trabalhado e reincidência do FGTS sobre Aviso Prévio Indenizado",null,null,null,7.0000000000000001E-3,5.1999999999999998E-3]
["SUBTOTAL DE \"D\"",{"$nulls":4},{"$f":"SUM(F45:F46)","v":8.950000000000001E-2},{"$f":"SUM(G45:G46)","v":3.6799999999999999E-2}]
[]
["TOTAIS DE ENCARGOS SOCIAIS",{"$nulls":4},{"$f":"ROUND(F21+F34+F42+F47,4)","v":0.91700000000000004},{"$f":"ROUND(G21+G34+G42+G47,4)","v":0.51959999999999995}]

{"sheet":"BDI Serviços","index":9,"n_rows":26,"n_cols":4,"rows_kept":26,"cut":false,"hidden":false,"merged":[[26,0,26,3],[20,0,20,3],[21,1,21,2],[22,0,22,3],[23,1,23,2],[24,0,24,3],[25,1,25,2],[19,1,19,2],[8,0,8,3],[9,1,9,2],[10,0,10,3],[11,1,11,2],[12,1,12,2],[13,1,13,2],[14,1,14,2],[15,1,15,2],[16,0,16,3],[17,1,17,2],[18,0,18,3],[7,1,7,2],[0,2,0,3],[1,2,1,3],[2,2,2,3],[5,0,5,3],[6,0,6,3]]}
[null,null,"Ministério da Integração Nacional - MI"]
[null,null,"Companhia  de  Desenvolvimento  dos  Vales  do  São  Francisco e do Parnaíba"]
[null,null,"6ª Superintendência Regional"]
[]
[]
["DETALHAMENTO DO BDI - SERVIÇOS"]
[]
["Item","Descrição dos serviços",null,"Preço de Venda (%)"]
[]
[1,"Administração Central (A)",null,4.4999999999999998E-2]
[]
[2,"Impostos e Taxas (I)",null,{"$f":"SUM(D13:D16)","v":0.10149999999999999}]
["2.1","ISS",null,0.02]
["2.2","PIS",null,6.4999999999999997E-3]
["2.3","Cofins",null,0.03]
["2.4","CPRB (Contribuição Previdenciária sobre a Receita Bruta)",null,4.4999999999999998E-2]
[]
[3,"Taxa de Risco (R)",null,1.2E-2]
[]
[4,"Seguros e Garantias (S + G)",null,6.0000000000000001E-3]
[]
[5,"Despesas Financeiras (F)",null,0.01]
[]
[6,"Lucro (L)",null,7.4999999999999997E-2]
[]
[null,"BDI (%)",null,{"$f":"(((1+$D$10+$D$18+$D$20)*(1+$D$22)*(1+$D$24))/(1-$D$12))-1","v":0.28453227601558151}]

{"sheet":"BDI Materiais","index":10,"n_rows":26,"n_cols":4,"rows_kept":26,"cut":false,"hidden":false,"merged":[[26,0,26,3],[20,0,20,3],[21,1,21,2],[22,0,22,3],[23,1,23,2],[24,0,24,3],[25,1,25,2],[19,1,19,2],[8,0,8,3],[9,1,9,2],[10,0,10,3],[11,1,11,2],[12,1,12,2],[13,1,13,2],[14,1,14,2],[15,1,15,2],[16,0,16,3],[17,1,17,2],[18,0,18,3],[7,1,7,2],[0,2,0,3],[1,2,1,3],[2,2,2,3],[5,0,5,3],[6,0,6,3]]}
[null,null,"Ministério da Integração Nacional - MI"]
[null,null,"Companhia  de  Desenvolvimento  dos  Vales  do  São  Francisco e do Parnaíba"]
[null,null,"6ª Superintendência Regional"]
[]
[]
["DETALHAMENTO DO BDI - MATERIAIS"]
[]
["Item","Descrição dos serviços",null,"Preço de Venda (%)"]
[]
[1,"Administração Central (A)",null,3.5000000000000003E-2]
[]
[2,"Impostos e Taxas (I)",null,{"$f":"SUM(D13:D16)","v":8.1499999999999989E-2}]
["2.1","ISS",null,0]
["2.2","PIS",null,6.4999999999999997E-3]
["2.3","Cofins",null,0.03]
["2.4","CPRB (Contribuição Previdenciária sobre a Receita Bruta)",null,4.4999999999999998E-2]
[]
[3,"Taxa de Risco (R)",null,8.5000000000000006E-3]
[]
[4,"Seguros e Garantias (S + G)",null,6.0000000000000001E-3]
[]
[5,"Despesas Financeiras (F)",null,8.5000000000000006E-3]
[]
[6,"Lucro (L)",null,0.05]
[]
[null,"BDI (%)",null,{"$f":"(((1+$D$10+$D$18+$D$20)*(1+$D$22)*(1+$D$24))/(1-$D$12))-1","v":0.20995295318453988}]

{"sheet":"Ancoragem","index":11,"n_rows":81,"n_cols":7,"rows_kept":81,"cut":false,"hidden":false,"merged":[]}
[]
[null,"1.5 - BLOCO DE ANCORAGEN"]
[null,"1.5.1 - ADUTORA DE ÁGUA BRUTA"]
[null,"Estaca ",222]
[null,"Curva",null,11.15,"°"]
[null,"Diâmetro interno do tubo",null,300,"mm"]
[null,"Tipo",null,"PBA"]
[null,"Diâmetro externo do tubo",null,0.32600000000000001,"m"]
[null,"Altura",null,{"$f":"D8+0.15","v":0.47599999999999998},"m"]
[null,"Sen α/2",null,{"$f":"SIN(RADIANS(D5)/2)","v":9.7148640610331669E-2}]
[null,"P",null,31,"m"]
[null,"S",null,{"$f":"(PI()*D8^2)/4","v":8.3468975213227214E-2},"m²"]
[null,"R'",null,{"$f":"ABS(2*D10*D11*D12)","v":0.50275164345635459},"tf"]
[null,"tgφ",null,0.4]
[null,"Peso especifico do concreto",null,2.4,"tf"]
[null,"Volume do concreto",null,{"$f":"(D13*D9*1.5)/(D14*2.4)","v":0.3739215348206637},"m³",{"$f":"D16*2","v":0.74784306964132741}]
[]
[null,"Estaca ","45 + 14,616"]
[null,"Curva",null,11.15,"°"]
[null,"Diâmetro interno do tubo",null,300,"mm"]
[null,"Tipo",null,"PBA"]
[null,"Diâmetro externo do tubo",null,0.32600000000000001,"m"]
[null,"Altura",null,{"$f":"D22+0.15","v":0.47599999999999998},"m"]
[null,"Sen α/2",null,{"$f":"SIN(RADIANS(D19)/2)","v":9.7148640610331669E-2}]
[null,"P",null,31,"m"]
[null,"S",null,{"$f":"(PI()*D22^2)/4","v":8.3468975213227214E-2},"m²"]
[null,"R'",null,{"$f":"ABS(2*D24*D25*D26)","v":0.50275164345635459},"tf"]
[null,"tgφ",null,0.4]
[null,"Peso especifico do concreto",null,2.4,"tf"]
[null,"Volume do concreto",null,{"$f":"(D27*D23*1.5)/(D28*2.4)","v":0.3739215348206637},"m³",{"$f":"D30*2","v":0.74784306964132741}]
[]
[{"$nulls":5},{"$f":"SUM(F16,F30)","v":1.4956861392826548},{"$f":"F32*1.2","v":1.7948233671391858}]
[]
[]
[null,"Estaca ",227]
[null,"Curva",null,45,"°"]
[null,"Diâmetro interno do tubo",null,300,"mm"]
[null,"Tipo",null,"PBA"]
[null,"Diâmetro externo do tubo",null,0.32600000000000001,"m"]
[null,"Altura",null,{"$f":"D39+0.15","v":0.47599999999999998},"m"]
[null,"Sen α/2",null,{"$f":"SIN(RADIANS(D36)/2)","v":0.38268343236508978}]
[null,"P",null,31,"m"]
[null,"S",null,{"$f":"(PI()*D39^2)/4","v":8.3468975213227214E-2},"m²"]
[null,"R'",null,{"$f":"ABS(2*D41*D42*D43)","v":1.9804160236968524},"tf"]
[null,"tgφ",null,0.4]
[null,"Peso especifico do concreto",null,2.4,"tf"]
[null,"Volume do concreto",null,{"$f":"(D44*D40*1.5)/(D45*2.4)","v":1.4729344176245338},"m³",{"$f":"D47*4","v":5.8917376704981352}]
[]
[{"$nulls":5},{"$f":"SUM(F33,F47)","v":5.8917376704981352},{"$f":"F49*1.2","v":7.0700852045977625}]
[]
[null,"Estaca "]
[null,"Curva",null,90,"°"]
[null,"Diâmetro interno do tubo",null,300,"mm"]
[null,"Tipo",null,"PBA"]
[null,"Diâmetro externo do tubo",null,0.32600000000000001,"m"]
[null,"Altura",null,{"$f":"D55+0.15","v":0.47599999999999998},"m"]
[null,"Sen α/2",null,{"$f":"SIN(RADIANS(D52)/2)","v":0.70710678118654746}]
[null,"P",null,31,"m"]
[null,"S",null,{"$f":"(PI()*D55^2)/4","v":8.3468975213227214E-2},"m²"]
[null,"R'",null,{"$f":"ABS(2*D57*D58*D59)","v":3.6593316603018184},"tf"]
[null,"tgφ",null,0.4]
[null,"Peso especifico do concreto",null,2.4,"tf"]
[null,"Volume do concreto",null,{"$f":"(D60*D56*1.5)/(D61*2.4)","v":2.7216279223494775},"m³",{"$f":"D63*5","v":13.608139611747387}]
[]
[{"$nulls":5},{"$f":"SUM(F49,F63)","v":19.499877282245521},{"$f":"F65*1.2","v":23.399852738694623}]
[]
[null,"Estaca "]
[null,"Curva",null,90,"°"]
[null,"Diâmetro interno do tubo",null,300,"mm"]
[null,"Tipo",null,"PBA"]
[null,"Diâmetro externo do tubo",null,0.32600000000000001,"m"]
[null,"Altura",null,{"$f":"D71+0.15","v":0.47599999999999998},"m"]
[null,"Sen α/2",null,{"$f":"SIN(RADIANS(D68)/2)","v":0.70710678118654746}]
[null,"P",null,31,"m"]
[null,"S",null,{"$f":"(PI()*D71^2)/4","v":8.3468975213227214E-2},"m²"]
[null,"R'",null,{"$f":"ABS(2*D73*D74*D75)","v":3.6593316603018184},"tf"]
[null,"tgφ",null,0.4]
[null,"Peso especifico do concreto",null,2.4,"tf"]
[null,"Volume do concreto",null,{"$f":"(D76*D72*1.5)/(D77*2.4)","v":2.7216279223494775},"m³",{"$f":"D79*5","v":13.608139611747387}]
[]
[{"$nulls":5},{"$f":"SUM(F79,F63,F47,F30,F16)","v":34.603703033275565},{"$f":"F81*1.2","v":41.524443639930674}]

{"sheet":"Quantitativos","index":12,"n_rows":83,"n_cols":8,"rows_kept":83,"cut":false,"hidden":false,"merged":[[76,3,77,3],[76,4,77,4],[76,5,76,6],[76,7,77,7]]}
[]
[null,"Eletroduto Diâmetro 0,10m - "]
[null,"Envelopamento com concreto",null,null,"Unid."]
[null,"Vala",null,"comprim.","m",25]
[null,null,null,"Largura","m",0.4]
[null,null,null,"Altura","m",0.4]
[null,null,null,"Vol. Escavado","m3",{"$f":"F6*F5*F4*1.05","v":4.2000000000000011}]
[null,null,null,"Vol. Eletroduto corrugado 0,10m","m3",{"$f":"((3.14*(0.1)*0.1)/4)*F4","v":0.19625000000000004}]
[null,null,null,"Vol. Envelopamento","m3",{"$f":"F7-F8","v":4.003750000000001}]
[]
[null,"Escavaçã mecânica para adutora"]
[null,"Tubulação Diâmetro 0,30m - "]
[null,null,null,"comprim.","m",4700]
[null,null,null,"Largura","m",0.8]
[null,null,null,"Altura","m",1.2]
[null,null,null,"Vol. Escavado","m3",{"$f":"F15*F14*F13","v":4512}]
[null,null,null,"Vol. Tubo","m3",{"$f":"(3.14*0.3*0.3)/4*F13","v":332.05499999999995}]
[null,null,null,"Reaterro","m3",{"$f":"(F16-F17-F19)*1.05","v":3994.1422499999999}]
[null,null,null,"Colchão de areia","m3",{"$f":"F14*0.1*F13","v":376.00000000000006}]
[null,null,null,"Vol. Escavado 1a","m3",{"$f":"F16*0.818","v":3690.8159999999998}]
[null,null,null,"Vol. Escavado 2a","m3",{"$f":"F16*0.182","v":821.18399999999997}]
[null,null,null,"Vol. Escavado 3a","m3",{"$f":"F21*0.5","v":410.59199999999998}]
[null,"Escavaçã mecânica para rede elétrica"]
[null,"Tubulação Diâmetro 0,10m - "]
[null,null,null,"comprim.","m",4000]
[null,null,null,"Largura","m",0.6]
[null,null,null,"Altura","m",1.2]
[null,null,null,"Vol. Escavado","m3",{"$f":"F27*F26*F25","v":2880}]
[null,null,null,"Volume tubo","m3",{"$f":"(3.14*0.1*0.1)/4*F25","v":31.400000000000006}]
[null,null,null,"Reaterro","m3",{"$f":"(F28-F29-F31)*1.05","v":2739.03}]
[null,null,null,"Colchão de areia","m3",{"$f":"F26*0.1*F25","v":240}]
[null,null,null,"Vol. Escavado 1a","m3",{"$f":"F28*0.818","v":2355.8399999999997}]
[null,null,null,"Vol. Escavado 2a","m3",{"$f":"F28*0.181","v":521.28}]
[null,null,null,"Vol. Escavado 3a","m3",{"$f":"F33*0.5","v":260.64}]
[null,null,null,"Expurgo","m3",{"$f":"F16+F28-F18-F30","v":658.82774999999992}]
[]
[null,"Ancoragem",null,null,null,42]
[]
[]
[]
[null,"Proteção dos equipamentos no molhe cerca"]
[null,null,null,"Largura A","m",4]
[null,null,null,"Largura B","m",6]
[null,null,null,"Área","m2",{"$f":"F42*F43","v":24}]
[null,null,null,"Perímetro","m",20]
[null,null,null,"Vol lastro","m3",{"$f":"F44*0.05*1.05","v":1.2600000000000002}]
[null,null,null,"Vol concreto","m3",{"$f":"F44*0.1*1.05","v":2.5200000000000005}]
[null,null,null,"Escavação","m3",{"$f":"F44*0.3","v":7.1999999999999993}]
[null,null,null,"Reaterro","m3",{"$f":"F44*0.2","v":4.8000000000000007}]
[]
[null,"Proteção dos equipamentos no cais pedra argamassada e bloco de concreto"]
[null,null,null,"Largura A","m",3]
[null,null,null,"Largura B","m",3.5]
[null,null,null,"Altura","m",2.6]
[null,null,null,"Área piso","m2",{"$f":"F52*F53","v":10.5}]
[null,null,null,"Perímetro","m",{"$f":"2*F52+2*F53","v":13}]
[null,null,null,"Área das paredes","m2",{"$f":"2*F52*F54+2*F53*F54-F67-F68","v":30.139999999999997}]
[null,null,null,"Vol lastro","m3",{"$f":"F55*0.05*1.05+F56*0.05*0.5","v":0.87624999999999997}]
[null,null,null,"Vol concreto","m3",{"$f":"F55*0.1*1.05","v":1.1025}]
[null,null,null,"escavação","m3",{"$f":"F55*0.55+F69*0.35 +F56*0.5*0.85","v":13.925000000000001}]
[null,null,null,"Reaterro","m3",{"$f":"F55*0.4+F69*0.2+F56*0.2*0.5+F56*0.1*0.6","v":7.78}]
[null,null,null,"fundação (pedra argamassada","m3",{"$f":"0.4*F56*0.65","v":3.3800000000000003}]
[null,null,null,"Cinta de amarração","m",{"$f":"F56","v":13}]
[null,null,null,"chapisco","m2",{"$f":"F57*2+0.2*12*2","v":65.08}]
[null,null,null,"reboco","m2",{"$f":"F57*2+0.2*12*2","v":65.08}]
[null,null,null,"pintura","m2",{"$f":"F57*2+0.2*12*2","v":65.08}]
[null,null,null,"portão","m2",{"$f":"1.4*2.1","v":2.94}]
[null,null,null,"Cobogó","m2",{"$f":"3*0.6*0.4","v":0.72}]
[null,null,null,"calçada","m2",{"$f":"2*0.5*3.5+2*0.5*4","v":7.5}]
[null,null,null,"Vol. Concreto Calçada","m3",{"$f":"F69*0.06","v":0.44999999999999996}]
[null,null,null,"Laje pre moldada","m2",{"$f":"3*3.6","v":10.8}]
[null,null,null,"Barras de 10 mm","unid",6]
[null,null,null,"verga"]
[]
[]
[null,null,null,"Sondagem realizada a trado"]
[null,null,null,"Ponto","Profundidade (m)","Coordenadas",null,"Material"]
[{"$nulls":5},"Longitude","Latitude"]
[null,null,null,"P11",1,821180.75800000003,8930604.4470000006,"Arenoso"]
[null,null,null,"P12",1,821156.66299999994,8930701.5629999992,"Arenoso"]
[null,null,null,"P13",1,821079.88100000005,8931011.0380000006,"Arenoso"]
[null,null,null,"P14",0.9,820946.70499999996,8931547.8249999993,"Arenoso"]
[null,null,null,"P15",0.9,820722.58200000005,8932451.1760000009,"Arenoso"]

{"sheet":"Plan1","index":13,"n_rows":0,"n_cols":0,"rows_kept":0,"cut":false,"hidden":false,"merged":[]}